NUMERO_MANDATO;RIGA_MANDATO;QUIET;IMPORTO_RIGA;IMPORTO_MANDATO;BENEFICIARIO;CIG;TITOLO_PAGAMENTO;DATA_MANDATO;CAPITOLO;ARTICOLO;NUMERO_IMPEGNO;TITOLO;DESCR_TITOLO;LIVELLO_II;DESCR_LIVELLO_II;LIVELLO_III;DESCR_LIVELLO_III;LIVELLO_IV;DESCR_LIVELLO_IV;LIVELLO_V;DESCR_LIVELLO_V;DATA_PAG_EFF;
3;1;6;"7,77";"8,00";AUTOSTRADE PER L'ITALIA S.p.A.; ;SALDO Fatt.n. 900026256D  del 30/12/2018;09-01-2019;1017;0;28;1;Spese correnti;3;Acquisto di beni e servizi;2;Acquisto di servizi;99;Altri servizi;999;Altri servizi diversi n.a.c.;10-01-2019;
3;2;7;"0,23";"8,00";TELEPASS SPA; ;SALDO Fatt.n. 900026384T  del 30/12/2018;09-01-2019;1017;0;28;1;Spese correnti;3;Acquisto di beni e servizi;2;Acquisto di servizi;99;Altri servizi;999;Altri servizi diversi n.a.c.;10-01-2019;
4;1;3;"4,94";"3.189,32";TELECOM ITALIA S.P.A.-TIM SPA;ZE9263E69A;SALDO Fatt.n. 8A00891239  del 06/12/2018 1BIM 2019;09-01-2019;6040;5;521;1;Spese correnti;3;Acquisto di beni e servizi;2;Acquisto di servizi;5;Utenze e canoni;1;Telefonia fissa;10-01-2019;
4;2;3;"74,49";"3.189,32";TELECOM ITALIA S.P.A.-TIM SPA;ZE9263E69A;SALDO Fatt.n. 8V00562732  del 06/12/2018 1BIM 2019;09-01-2019;6040;5;521;1;Spese correnti;3;Acquisto di beni e servizi;2;Acquisto di servizi;5;Utenze e canoni;1;Telefonia fissa;10-01-2019;
4;3;3;"76,30";"3.189,32";TELECOM ITALIA S.P.A.-TIM SPA;ZE9263E69A;SALDO Fatt.n. 8V00565651  del 06/12/2018 1BIM 2019;09-01-2019;6040;5;521;1;Spese correnti;3;Acquisto di beni e servizi;2;Acquisto di servizi;5;Utenze e canoni;1;Telefonia fissa;10-01-2019;
4;4;3;"388,92";"3.189,32";TELECOM ITALIA S.P.A.-TIM SPA;ZE9263E69A;SALDO Fatt.n. 8V00563105  del 06/12/2018 1BIM 2019;09-01-2019;6040;5;521;1;Spese correnti;3;Acquisto di beni e servizi;2;Acquisto di servizi;5;Utenze e canoni;1;Telefonia fissa;10-01-2019;
4;5;3;"813,84";"3.189,32";TELECOM ITALIA S.P.A.-TIM SPA;ZE9263E69A;SALDO Fatt.n. 8V00563798  del 06/12/2018 1BIM 2019;09-01-2019;6040;5;521;1;Spese correnti;3;Acquisto di beni e servizi;2;Acquisto di servizi;5;Utenze e canoni;1;Telefonia fissa;10-01-2019;
4;6;3;"833,35";"3.189,32";TELECOM ITALIA S.P.A.-TIM SPA;ZE9263E69A;SALDO Fatt.n. 8V00563519  del 06/12/2018 1BIM 2019;09-01-2019;6040;5;521;1;Spese correnti;3;Acquisto di beni e servizi;2;Acquisto di servizi;5;Utenze e canoni;1;Telefonia fissa;10-01-2019;
4;7;3;"997,48";"3.189,32";TELECOM ITALIA S.P.A.-TIM SPA;ZE9263E69A;ACCONTO Fatt.n. 4220919800011828  del 06/12/2018 1BIM 2019;09-01-2019;6040;5;521;1;Spese correnti;3;Acquisto di beni e servizi;2;Acquisto di servizi;5;Utenze e canoni;1;Telefonia fissa;10-01-2019;
5;1;4;"76,30";"211,77";TELECOM ITALIA S.P.A.-TIM SPA;ZE9263E69A;SALDO Fatt.n. 8V00563388  del 06/12/2018 1BIM 2019;09-01-2019;6040;6;522;1;Spese correnti;3;Acquisto di beni e servizi;2;Acquisto di servizi;5;Utenze e canoni;1;Telefonia fissa;10-01-2019;
5;2;4;"135,47";"211,77";TELECOM ITALIA S.P.A.-TIM SPA;ZE9263E69A;SALDO Fatt.n. 4220919800011815  del 06/12/2018 1BIM 2019;09-01-2019;6040;6;522;1;Spese correnti;3;Acquisto di beni e servizi;2;Acquisto di servizi;5;Utenze e canoni;1;Telefonia fissa;10-01-2019;
6;1;5;"117,10";"117,10";TELECOM ITALIA S.P.A.-TIM SPA;ZE9263E69A;SALDO Fatt.n. 4220919800011828  del 06/12/2018 1BIM 2019;09-01-2019;6040;10;524;1;Spese correnti;3;Acquisto di beni e servizi;2;Acquisto di servizi;5;Utenze e canoni;1;Telefonia fissa;10-01-2019;
8;1;42;"1,48";"1,48";MINISTERO DELL'INTERNO-ALBO NAZ.SEGRETARI COM. E PROV.; ;DIRITTI SEGRETERIA I TRIM. 2018;09-01-2019;1037;1;114;1;Spese correnti;4;Trasferimenti correnti;1;Trasferimenti correnti a Amministrazioni Pubbliche;2;Trasferimenti correnti a Amministrazioni Locali;999;Trasferimenti correnti a altre Amministrazioni Locali n.a.c.;16-01-2019;
9;1;43;"2,11";"2,11";MINISTERO DELL'INTERNO-ALBO NAZ.SEGRETARI COM. E PROV.; ;DIRITTI SEGRETERIA II TRIM. 2018;09-01-2019;1037;1;241;1;Spese correnti;4;Trasferimenti correnti;1;Trasferimenti correnti a Amministrazioni Pubbliche;2;Trasferimenti correnti a Amministrazioni Locali;999;Trasferimenti correnti a altre Amministrazioni Locali n.a.c.;16-01-2019;
10;1;44;"2,89";"2,89";MINISTERO DELL'INTERNO-ALBO NAZ.SEGRETARI COM. E PROV.; ;DIRITTI SEGRETERIA III TRIM. 2018;09-01-2019;1037;1;333;1;Spese correnti;4;Trasferimenti correnti;1;Trasferimenti correnti a Amministrazioni Pubbliche;2;Trasferimenti correnti a Amministrazioni Locali;999;Trasferimenti correnti a altre Amministrazioni Locali n.a.c.;16-01-2019;
11;1;45;"3,43";"3,43";MINISTERO DELL'INTERNO-ALBO NAZ.SEGRETARI COM. E PROV.; ;DIRITTI SEGRETERIA IV TRIM. 2018;09-01-2019;1037;1;625;1;Spese correnti;4;Trasferimenti correnti;1;Trasferimenti correnti a Amministrazioni Pubbliche;2;Trasferimenti correnti a Amministrazioni Locali;999;Trasferimenti correnti a altre Amministrazioni Locali n.a.c.;16-01-2019;
12;1;9;"0,01";"19.907,20";AZIENDA SICILIANA TRASPORTI;Z0924B205D;SALDO Fatt.n. 129/S4  del 07/12/2018 TRASPORTO STUDENTI NOV.2018;09-01-2019;2000;9;254;1;Spese correnti;3;Acquisto di beni e servizi;2;Acquisto di servizi;15;Contratti di servizio pubblico;2;Contratti di servizio di trasporto scolastico;11-01-2019;
12;2;9;"5.200,60";"19.907,20";AZIENDA SICILIANA TRASPORTI;Z0924B205D;SALDO Fatt.n. 100/S4  del 03/10/2018 TRASPORTO STUDENTI SETT.2018;09-01-2019;2000;9;254;1;Spese correnti;3;Acquisto di beni e servizi;2;Acquisto di servizi;15;Contratti di servizio pubblico;2;Contratti di servizio di trasporto scolastico;11-01-2019;
12;3;9;"7.285,70";"19.907,20";AZIENDA SICILIANA TRASPORTI;Z0924B205D;SALDO Fatt.n. 110/S4  del 13/11/2018 TRASPORTO STUDENTI OTT.2018;09-01-2019;2000;9;254;1;Spese correnti;3;Acquisto di beni e servizi;2;Acquisto di servizi;15;Contratti di servizio pubblico;2;Contratti di servizio di trasporto scolastico;11-01-2019;
12;4;9;"7.420,89";"19.907,20";AZIENDA SICILIANA TRASPORTI;Z0924B205D;ACCONTO Fatt.n. 129/S4  del 07/12/2018 TRASPORTO STUDENTI NOV.2018;09-01-2019;2000;9;254;1;Spese correnti;3;Acquisto di beni e servizi;2;Acquisto di servizi;15;Contratti di servizio pubblico;2;Contratti di servizio di trasporto scolastico;11-01-2019;
13;1;10;"804,81";"2.466,58";BENFATTA SALVATORE & C. S.N.C.;Z7A2641915;SALDO Fatt.n. 000009-2018-FATTURE  del 14/12/2018 IMPEGNO SPESA 16971 DEL 13/12/2018-SOMMA URGENZA DEL 03/12/18 RIPRISTINO CONDOTTA IDRICA;11-01-2019;4035;0;531;2;Spese in conto capitale;2;Investimenti fissi lordi e acquisto di terreni;1;Beni materiali;9;Beni immobili;13;Altre vie di comunicazione;11-01-2019;
13;2;10;"1.661,77";"2.466,58";BENFATTA SALVATORE & C. S.N.C.;Z7A2641915;SALDO Fatt.n. 000010-2018-FATTURE  del 14/12/2018 IMPEGNO SPESA 16971 DEL 13/12/2018-SOMMA URGENZA DEL 03/12/18 RIPRISTINO CONDOTTA IDRICA;11-01-2019;4035;0;531;2;Spese in conto capitale;2;Investimenti fissi lordi e acquisto di terreni;1;Beni materiali;9;Beni immobili;13;Altre vie di comunicazione;11-01-2019;
14;1;11;"0,02";"90,14";KUWAIT PETROLEUM ITALIA S.P.A.;6516542493;Fatt.n. PJ00569775 del 30/11/2018 CARBURANTE PER AUTOMEZZI NOV.2018;11-01-2019;6080;2;23;1;Spese correnti;3;Acquisto di beni e servizi;1;Acquisto di beni;2;Altri beni di consumo;2;"Carburanti, combustibili e lubrificanti";11-01-2019;
14;2;11;"90,12";"90,14";KUWAIT PETROLEUM ITALIA S.P.A.;6516542493;Fatt.n. PJ00569775 del 30/11/2018 CARBURANTE PER AUTOMEZZI NOV.2018;11-01-2019;6080;2;23;1;Spese correnti;3;Acquisto di beni e servizi;1;Acquisto di beni;2;Altri beni di consumo;2;"Carburanti, combustibili e lubrificanti";11-01-2019;
15;1;12;"1.219,79";"1.219,79";KUWAIT PETROLEUM ITALIA S.P.A.;6516542493;Fatt.n. PJ00569775 del 30/11/2018 CARBURANTE PER AUTOMEZZI NOV.2018;11-01-2019;6080;3;24;1;Spese correnti;3;Acquisto di beni e servizi;1;Acquisto di beni;2;Altri beni di consumo;2;"Carburanti, combustibili e lubrificanti";11-01-2019;
16;1;13;"458,25";"458,25";KUWAIT PETROLEUM ITALIA S.P.A.;6516542493;Fatt.n. PJ00569775 del 30/11/2018 CARBURANTE PER AUTOMEZZI NOV.2018;11-01-2019;6080;4;25;1;Spese correnti;3;Acquisto di beni e servizi;1;Acquisto di beni;2;Altri beni di consumo;2;"Carburanti, combustibili e lubrificanti";11-01-2019;
17;1;14;"365,00";"365,00";KUWAIT PETROLEUM ITALIA S.P.A.;6516542493;Fatt.n. PJ00569775 del 30/11/2018 CARBURANTE PER AUTOMEZZI NOV.2018;11-01-2019;6080;5;26;1;Spese correnti;3;Acquisto di beni e servizi;1;Acquisto di beni;2;Altri beni di consumo;2;"Carburanti, combustibili e lubrificanti";11-01-2019;
18;1;15;"42,89";"42,89";KUWAIT PETROLEUM ITALIA S.P.A.;6516542493;Fatt.n. PJ00569775 del 30/11/2018 CARBURANTE PER AUTOMEZZI NOV.2018;11-01-2019;6080;7;27;1;Spese correnti;3;Acquisto di beni e servizi;1;Acquisto di beni;2;Altri beni di consumo;2;"Carburanti, combustibili e lubrificanti";11-01-2019;
19;1;16;"269,92";"269,92";ALATI CARMELO;Z222647CE7;manifestazioni natalizie 2018-SPETTACOLO DI MAGIA;11-01-2019;1520;1;537;1;Spese correnti;3;Acquisto di beni e servizi;2;Acquisto di servizi;2;"Organizzazione eventi, pubblicita` e servizi per trasferta";5;Organizzazione e partecipazione a manifestazioni e convegni;11-01-2019;
20;1;2;"1.233,33";"1.233,33";TESORIERE COMUNALE-CREDITO VALTELLINESE; ;SERVIZIO TESORERIA COMUNALE ANNO 2018 - RIMBORSO SPESE;11-01-2019;1054;0;389;1;Spese correnti;3;Acquisto di beni e servizi;2;Acquisto di servizi;15;Contratti di servizio pubblico;999;Altre spese per contratti di servizio pubblico;11-01-2019;
21;1;17;"70,00";"70,00";ECONOMO COMUNALE; ;RIMBORSO SPESE ECONOMATO 4^ TRIMESTRE 2018;14-01-2019;1003;0;403;1;Spese correnti;3;Acquisto di beni e servizi;2;Acquisto di servizi;2;"Organizzazione eventi, pubblicita` e servizi per trasferta";5;Organizzazione e partecipazione a manifestazioni e convegni;14-01-2019;
22;1;18;"80,00";"80,00";ECONOMO COMUNALE; ;RIMBORSO SPESE ECONOMATO 4^ TRIMESTRE 2018;14-01-2019;1040;0;411;1;Spese correnti;3;Acquisto di beni e servizi;2;Acquisto di servizi;4;Acquisto di servizi per formazione e addestramento del personale dell'ente;4;Acquisto di servizi per formazione obbligatoria;14-01-2019;
24;1;20;"358,53";"358,53";ECONOMO COMUNALE; ;RIMBORSO SPESE ECONOMATO 4^ TRIMESTRE 2018;14-01-2019;1571;0;424;1;Spese correnti;3;Acquisto di beni e servizi;2;Acquisto di servizi;9;Manutenzione ordinaria e riparazioni;8;Manutenzione ordinaria e riparazioni di beni immobili;14-01-2019;
25;1;21;"100,00";"100,00";ECONOMO COMUNALE; ;RIMBORSO SPESE ECONOMATO 4^ TRIMESTRE 2018;14-01-2019;2140;1;407;1;Spese correnti;3;Acquisto di beni e servizi;1;Acquisto di beni;2;Altri beni di consumo;6;Materiale informatico;14-01-2019;
26;1;22;"240,00";"240,00";ECONOMO COMUNALE; ;RIMBORSO SPESE ECONOMATO 4^ TRIMESTRE 2018;14-01-2019;2140;2;414;1;Spese correnti;3;Acquisto di beni e servizi;1;Acquisto di beni;2;Altri beni di consumo;6;Materiale informatico;14-01-2019;
27;1;23;"210,00";"210,00";ECONOMO COMUNALE; ;RIMBORSO SPESE ECONOMATO 4^ TRIMESTRE 2018;14-01-2019;2140;3;415;1;Spese correnti;3;Acquisto di beni e servizi;1;Acquisto di beni;2;Altri beni di consumo;6;Materiale informatico;14-01-2019;
28;1;24;"200,00";"200,00";ECONOMO COMUNALE; ;RIMBORSO SPESE ECONOMATO 4^ TRIMESTRE 2018;14-01-2019;2140;5;439;1;Spese correnti;3;Acquisto di beni e servizi;1;Acquisto di beni;2;Altri beni di consumo;6;Materiale informatico;14-01-2019;
29;1;25;"145,00";"145,00";ECONOMO COMUNALE; ;RIMBORSO SPESE ECONOMATO 4^ TRIMESTRE 2018;14-01-2019;2140;6;449;1;Spese correnti;3;Acquisto di beni e servizi;1;Acquisto di beni;2;Altri beni di consumo;6;Materiale informatico;14-01-2019;
30;1;26;"64,00";"64,00";ECONOMO COMUNALE; ;RIMBORSO SPESE ECONOMATO 4^ TRIMESTRE 2018;14-01-2019;2140;8;440;1;Spese correnti;3;Acquisto di beni e servizi;1;Acquisto di beni;2;Altri beni di consumo;6;Materiale informatico;14-01-2019;
31;1;27;"101,00";"101,00";ECONOMO COMUNALE; ;RIMBORSO SPESE ECONOMATO 4^ TRIMESTRE 2018;14-01-2019;6050;0;409;1;Spese correnti;3;Acquisto di beni e servizi;1;Acquisto di beni;2;Altri beni di consumo;1;"Carta, cancelleria e stampati";14-01-2019;
32;1;28;"200,00";"200,00";ECONOMO COMUNALE; ;RIMBORSO SPESE ECONOMATO 4^ TRIMESTRE 2018;14-01-2019;6050;5;410;1;Spese correnti;3;Acquisto di beni e servizi;1;Acquisto di beni;2;Altri beni di consumo;1;"Carta, cancelleria e stampati";14-01-2019;
33;1;29;"111,49";"111,49";ECONOMO COMUNALE; ;RIMBORSO SPESE ECONOMATO 4^ TRIMESTRE 2018;14-01-2019;6050;11;420;1;Spese correnti;3;Acquisto di beni e servizi;1;Acquisto di beni;2;Altri beni di consumo;1;"Carta, cancelleria e stampati";14-01-2019;
34;1;30;"100,00";"100,00";ECONOMO COMUNALE; ;RIMBORSO SPESE ECONOMATO 4^ TRIMESTRE 2018;14-01-2019;6050;13;446;1;Spese correnti;3;Acquisto di beni e servizi;1;Acquisto di beni;2;Altri beni di consumo;1;"Carta, cancelleria e stampati";14-01-2019;
35;1;31;"112,53";"112,53";ECONOMO COMUNALE; ;RIMBORSO SPESE ECONOMATO 4^ TRIMESTRE 2018;14-01-2019;6050;14;447;1;Spese correnti;3;Acquisto di beni e servizi;1;Acquisto di beni;2;Altri beni di consumo;1;"Carta, cancelleria e stampati";14-01-2019;
36;1;32;"155,55";"155,55";ECONOMO COMUNALE; ;RIMBORSO SPESE ECONOMATO 4^ TRIMESTRE 2018;14-01-2019;6050;18;433;1;Spese correnti;3;Acquisto di beni e servizi;1;Acquisto di beni;2;Altri beni di consumo;1;"Carta, cancelleria e stampati";14-01-2019;
37;1;33;"188,06";"188,06";ECONOMO COMUNALE; ;"RIMBORSO SPESE ECONOMATO PER RIPARAZIONE PNEUMATICI, PRENOTAZIONE ALLA REVISIONE, LAVAGGI, DEGLI AUTOMEZZI COMUNALI .";14-01-2019;6070;1;479;1;Spese correnti;3;Acquisto di beni e servizi;2;Acquisto di servizi;9;Manutenzione ordinaria e riparazioni;1;"Manutenzione ordinaria e riparazioni di mezzi di trasporto ad uso civile, di sicurezza e ordine pubblico";14-01-2019;
38;1;34;"66,88";"66,88";ECONOMO COMUNALE; ;"RIMBORSO SPESE ECONOMATO PER RIPARAZIONE PNEUMATICI, PRENOTAZIONE ALLA REVISIONE, LAVAGGI, DEGLI AUTOMEZZI COMUNALI .";14-01-2019;6070;2;480;1;Spese correnti;3;Acquisto di beni e servizi;2;Acquisto di servizi;9;Manutenzione ordinaria e riparazioni;1;"Manutenzione ordinaria e riparazioni di mezzi di trasporto ad uso civile, di sicurezza e ordine pubblico";14-01-2019;
39;1;35;"151,88";"151,88";ECONOMO COMUNALE; ;"RIMBORSO SPESE ECONOMATO PER RIPARAZIONE PNEUMATICI, PRENOTAZIONE ALLA REVISIONE, LAVAGGI, DEGLI AUTOMEZZI COMUNALI .";14-01-2019;6070;4;481;1;Spese correnti;3;Acquisto di beni e servizi;2;Acquisto di servizi;9;Manutenzione ordinaria e riparazioni;1;"Manutenzione ordinaria e riparazioni di mezzi di trasporto ad uso civile, di sicurezza e ordine pubblico";14-01-2019;
40;1;36;"363,99";"363,99";ECONOMO COMUNALE; ;"RIMBORSO SPESE ECONOMATO PER RIPARAZIONE PNEUMATICI, PRENOTAZIONE ALLA REVISIONE, LAVAGGI, DEGLI AUTOMEZZI COMUNALI .";14-01-2019;6070;5;482;1;Spese correnti;3;Acquisto di beni e servizi;2;Acquisto di servizi;9;Manutenzione ordinaria e riparazioni;1;"Manutenzione ordinaria e riparazioni di mezzi di trasporto ad uso civile, di sicurezza e ordine pubblico";14-01-2019;
41;1;37;"158,76";"158,76";ECONOMO COMUNALE; ;"RIMBORSO SPESE ECONOMATO PER RIPARAZIONE PNEUMATICI, PRENOTAZIONE ALLA REVISIONE, LAVAGGI, DEGLI AUTOMEZZI COMUNALI .";14-01-2019;6070;7;483;1;Spese correnti;3;Acquisto di beni e servizi;2;Acquisto di servizi;9;Manutenzione ordinaria e riparazioni;1;"Manutenzione ordinaria e riparazioni di mezzi di trasporto ad uso civile, di sicurezza e ordine pubblico";14-01-2019;
42;1;38;"797,72";"797,72";ECONOMO COMUNALE; ;"RIMBORSO SPESE ECONOMATO PER RIPARAZIONE PNEUMATICI, PRENOTAZIONE ALLA REVISIONE, LAVAGGI, DEGLI AUTOMEZZI COMUNALI .";14-01-2019;6070;9;484;1;Spese correnti;3;Acquisto di beni e servizi;2;Acquisto di servizi;9;Manutenzione ordinaria e riparazioni;1;"Manutenzione ordinaria e riparazioni di mezzi di trasporto ad uso civile, di sicurezza e ordine pubblico";14-01-2019;
43;1;39;"97,58";"97,58";ECONOMO COMUNALE; ;RIMBORSO SPESE ECONOMATO PER MANIFESTAZIONI NATALIZIE ANNO 2018;14-01-2019;1520;1;492;1;Spese correnti;3;Acquisto di beni e servizi;2;Acquisto di servizi;2;"Organizzazione eventi, pubblicita` e servizi per trasferta";5;Organizzazione e partecipazione a manifestazioni e convegni;14-01-2019;
44;1;40;"102,70";"102,70";ECONOMO COMUNALE; ;RIMBORSO SPESE ECONOMATO PER PROGETTI DI DEMOCRAZIA PARTECIPATA " GIOCO - CREO - IMPARO -";14-01-2019;1477;0;494;1;Spese correnti;10;Altre spese correnti;99;Altre spese correnti n.a.c.;99;Altre spese correnti n.a.c.;999;Altre spese correnti n.a.c.;14-01-2019;
45;1;46;"475,15";"475,15";LA BOTTEGA DEL LETTORE DI MOSCA LUIGIA  & C. S.A.S.; ;SALDO Fatt.n. 11  del 14/12/2018 BUONI LIBRO A.S.2018/2019;16-01-2019;2000;10;547;1;Spese correnti;3;Acquisto di beni e servizi;2;Acquisto di servizi;99;Altri servizi;999;Altri servizi diversi n.a.c.;16-01-2019;
46;1;47;"732,00";"732,00";RACCUIA ANTONINO;Z68217ACDC;SALDO Fatt.n. FATTPA 3_18  del 13/12/2018 AUTOCONTROLLO SANITARIO HACCP MENSA ASILO NIDO;16-01-2019;1776;0;520;1;Spese correnti;3;Acquisto di beni e servizi;1;Acquisto di beni;2;Altri beni di consumo;999;Altri beni e materiali di consumo n.a.c.;16-01-2019;
47;1;48;"412,64";"412,64";POSTEL S.P.A.;ZE11FF32F1;SALDO Fatt.n. 2018116034  del 17/12/2018 postalizzazione bollette acquedotto saldo 2017;16-01-2019;1043;3;376;1;Spese correnti;3;Acquisto di beni e servizi;2;Acquisto di servizi;16;Servizi amministrativi;2;Spese postali;16-01-2019;
48;1;49;"5.000,00";"5.000,00";RAIMONDO CARMELO;Z81261BFFB;SALDO Fatt.n. FATTPA 4_18  del 20/12/2018 fornitura e installazione luminarie natalizie;17-01-2019;1520;1;459;1;Spese correnti;3;Acquisto di beni e servizi;2;Acquisto di servizi;2;"Organizzazione eventi, pubblicita` e servizi per trasferta";5;Organizzazione e partecipazione a manifestazioni e convegni;17-01-2019;
49;1;50;"4.295,67";"4.295,67";ZINGERLEMETAL;ZAF2643AFA;SALDO Fatt.n. RLPA-2018-119  del 20/12/2018 fornitura gazebo;17-01-2019;1477;0;545;1;Spese correnti;10;Altre spese correnti;99;Altre spese correnti n.a.c.;99;Altre spese correnti n.a.c.;999;Altre spese correnti n.a.c.;17-01-2019;
50;1;51;"1.307,95";"1.307,95";I.S.G. COSTRUZIONI S.R.L.;ZF62532C7A;ACCONTO Fatt.n. 3 / FE  del 21/12/2018 RIPRISTINO ACQUEDOTTO;17-01-2019;4035;0;362;2;Spese in conto capitale;2;Investimenti fissi lordi e acquisto di terreni;1;Beni materiali;9;Beni immobili;13;Altre vie di comunicazione;17-01-2019;
51;1;52;"287,75";"287,75";I.S.G. COSTRUZIONI S.R.L.;ZF62532C7A;SALDO Fatt.n. 3 / FE  del 21/12/2018 RIPRISTINO ACQUEDOTTO;17-01-2019;4035;0;519;2;Spese in conto capitale;2;Investimenti fissi lordi e acquisto di terreni;1;Beni materiali;9;Beni immobili;13;Altre vie di comunicazione;17-01-2019;
52;1;87;"204,00";"204,00";AZIENDA SANITARIA PROVINCIALE N.5; ;VIDIMAZIONE TABELLE DIETETICHE ASILO NIDO ANNO 2019;17-01-2019;1776;0;321;1;Spese correnti;3;Acquisto di beni e servizi;1;Acquisto di beni;2;Altri beni di consumo;999;Altri beni e materiali di consumo n.a.c.;18-01-2019;
53;1;53;"58,92";"2.279,02";ADAMO GIUSEPPE; ;D.LVO 65/13.04.2017 - CONTRIBUTO ALLE FAMIGLIE annualita' 2017;17-01-2019;1777;0;369;1;Spese correnti;4;Trasferimenti correnti;2;Trasferimenti correnti a Famiglie;5;Altri trasferimenti a famiglie;999;Altri trasferimenti a famiglie n.a.c.;17-01-2019;
53;2;54;"248,79";"2.279,02";CAFFARELLI CARMELA; ;D.LVO 65/13.04.2017 - CONTRIBUTO ALLE FAMIGLIE annualita' 2017;17-01-2019;1777;0;369;1;Spese correnti;4;Trasferimenti correnti;2;Trasferimenti correnti a Famiglie;5;Altri trasferimenti a famiglie;999;Altri trasferimenti a famiglie n.a.c.;17-01-2019;
53;3;55;"104,75";"2.279,02";CAPORLINGUA KATIA; ;D.LVO 65/13.04.2017 - CONTRIBUTO ALLE FAMIGLIE annualita' 2017;17-01-2019;1777;0;369;1;Spese correnti;4;Trasferimenti correnti;2;Trasferimenti correnti a Famiglie;5;Altri trasferimenti a famiglie;999;Altri trasferimenti a famiglie n.a.c.;17-01-2019;
53;4;56;"98,21";"2.279,02";CASELLA ROBERTA; ;D.LVO 65/13.04.2017 - CONTRIBUTO ALLE FAMIGLIE annualita' 2017;17-01-2019;1777;0;369;1;Spese correnti;4;Trasferimenti correnti;2;Trasferimenti correnti a Famiglie;5;Altri trasferimenti a famiglie;999;Altri trasferimenti a famiglie n.a.c.;17-01-2019;
53;5;57;"98,21";"2.279,02";DI PERNA LUCIA; ;D.LVO 65/13.04.2017 - CONTRIBUTO ALLE FAMIGLIE annualita' 2017;17-01-2019;1777;0;369;1;Spese correnti;4;Trasferimenti correnti;2;Trasferimenti correnti a Famiglie;5;Altri trasferimenti a famiglie;999;Altri trasferimenti a famiglie n.a.c.;17-01-2019;
53;6;58;"72,02";"2.279,02";FERRARO ANTONINO; ;D.LVO 65/13.04.2017 - CONTRIBUTO ALLE FAMIGLIE annualita' 2017;17-01-2019;1777;0;369;1;Spese correnti;4;Trasferimenti correnti;2;Trasferimenti correnti a Famiglie;5;Altri trasferimenti a famiglie;999;Altri trasferimenti a famiglie n.a.c.;17-01-2019;
53;7;59;"47,47";"2.279,02";GIUFFRE' ROSSELLA; ;D.LVO 65/13.04.2017 - CONTRIBUTO ALLE FAMIGLIE annualita' 2017;17-01-2019;1777;0;369;1;Spese correnti;4;Trasferimenti correnti;2;Trasferimenti correnti a Famiglie;5;Altri trasferimenti a famiglie;999;Altri trasferimenti a famiglie n.a.c.;17-01-2019;
53;8;60;"152,22";"2.279,02";GUGLIOTTA IRENE CARMEN; ;D.LVO 65/13.04.2017 - CONTRIBUTO ALLE FAMIGLIE annualita' 2017;17-01-2019;1777;0;369;1;Spese correnti;4;Trasferimenti correnti;2;Trasferimenti correnti a Famiglie;5;Altri trasferimenti a famiglie;999;Altri trasferimenti a famiglie n.a.c.;17-01-2019;
53;9;61;"114,57";"2.279,02";GULINO LAURA; ;D.LVO 65/13.04.2017 - CONTRIBUTO ALLE FAMIGLIE annualita' 2017;17-01-2019;1777;0;369;1;Spese correnti;4;Trasferimenti correnti;2;Trasferimenti correnti a Famiglie;5;Altri trasferimenti a famiglie;999;Altri trasferimenti a famiglie n.a.c.;17-01-2019;
53;10;62;"98,21";"2.279,02";GULLO EMILIO; ;D.LVO 65/13.04.2017 - CONTRIBUTO ALLE FAMIGLIE annualita' 2017;17-01-2019;1777;0;369;1;Spese correnti;4;Trasferimenti correnti;2;Trasferimenti correnti a Famiglie;5;Altri trasferimenti a famiglie;999;Altri trasferimenti a famiglie n.a.c.;17-01-2019;
53;11;63;"163,67";"2.279,02";MARCHELLO ORNELLA; ;D.LVO 65/13.04.2017 - CONTRIBUTO ALLE FAMIGLIE annualita' 2017;17-01-2019;1777;0;369;1;Spese correnti;4;Trasferimenti correnti;2;Trasferimenti correnti a Famiglie;5;Altri trasferimenti a famiglie;999;Altri trasferimenti a famiglie n.a.c.;17-01-2019;
53;12;64;"37,65";"2.279,02";MARINO VERONICA; ;D.LVO 65/13.04.2017 - CONTRIBUTO ALLE FAMIGLIE annualita' 2017;17-01-2019;1777;0;369;1;Spese correnti;4;Trasferimenti correnti;2;Trasferimenti correnti a Famiglie;5;Altri trasferimenti a famiglie;999;Altri trasferimenti a famiglie n.a.c.;17-01-2019;
53;13;65;"160,40";"2.279,02";MONDELLO DANIELA; ;D.LVO 65/13.04.2017 - CONTRIBUTO ALLE FAMIGLIE annualita' 2017;17-01-2019;1777;0;369;1;Spese correnti;4;Trasferimenti correnti;2;Trasferimenti correnti a Famiglie;5;Altri trasferimenti a famiglie;999;Altri trasferimenti a famiglie n.a.c.;17-01-2019;
53;14;66;"39,28";"2.279,02";MORELLO IVAN; ;D.LVO 65/13.04.2017 - CONTRIBUTO ALLE FAMIGLIE annualita' 2017;17-01-2019;1777;0;369;1;Spese correnti;4;Trasferimenti correnti;2;Trasferimenti correnti a Famiglie;5;Altri trasferimenti a famiglie;999;Altri trasferimenti a famiglie n.a.c.;17-01-2019;
53;15;67;"134,87";"2.279,02";PINTABONA EVA; ;D.LVO 65/13.04.2017 - CONTRIBUTO ALLE FAMIGLIE annualita' 2017;17-01-2019;1777;0;369;1;Spese correnti;4;Trasferimenti correnti;2;Trasferimenti correnti a Famiglie;5;Altri trasferimenti a famiglie;999;Altri trasferimenti a famiglie n.a.c.;17-01-2019;
53;16;68;"90,35";"2.279,02";SCAFIDI ANGELA; ;D.LVO 65/13.04.2017 - CONTRIBUTO ALLE FAMIGLIE annualita' 2017;17-01-2019;1777;0;369;1;Spese correnti;4;Trasferimenti correnti;2;Trasferimenti correnti a Famiglie;5;Altri trasferimenti a famiglie;999;Altri trasferimenti a famiglie n.a.c.;17-01-2019;
53;17;69;"49,10";"2.279,02";SCAFIDI NANCY; ;D.LVO 65/13.04.2017 - CONTRIBUTO ALLE FAMIGLIE annualita' 2017;17-01-2019;1777;0;369;1;Spese correnti;4;Trasferimenti correnti;2;Trasferimenti correnti a Famiglie;5;Altri trasferimenti a famiglie;999;Altri trasferimenti a famiglie n.a.c.;17-01-2019;
53;18;70;"68,74";"2.279,02";SCAVONE  MARIA TERESA; ;D.LVO 65/13.04.2017 - CONTRIBUTO ALLE FAMIGLIE annualita' 2017;17-01-2019;1777;0;369;1;Spese correnti;4;Trasferimenti correnti;2;Trasferimenti correnti a Famiglie;5;Altri trasferimenti a famiglie;999;Altri trasferimenti a famiglie n.a.c.;17-01-2019;
53;19;71;"32,73";"2.279,02";SCHEPISI GIUSEPPINA; ;D.LVO 65/13.04.2017 - CONTRIBUTO ALLE FAMIGLIE annualita' 2017;17-01-2019;1777;0;369;1;Spese correnti;4;Trasferimenti correnti;2;Trasferimenti correnti a Famiglie;5;Altri trasferimenti a famiglie;999;Altri trasferimenti a famiglie n.a.c.;17-01-2019;
53;20;72;"181,68";"2.279,02";TRICOLI GRAZIELLA; ;D.LVO 65/13.04.2017 - CONTRIBUTO ALLE FAMIGLIE annualita' 2017;17-01-2019;1777;0;369;1;Spese correnti;4;Trasferimenti correnti;2;Trasferimenti correnti a Famiglie;5;Altri trasferimenti a famiglie;999;Altri trasferimenti a famiglie n.a.c.;17-01-2019;
53;21;73;"103,12";"2.279,02";TRICOLI LUISA MARTA; ;D.LVO 65/13.04.2017 - CONTRIBUTO ALLE FAMIGLIE annualita' 2017;17-01-2019;1777;0;369;1;Spese correnti;4;Trasferimenti correnti;2;Trasferimenti correnti a Famiglie;5;Altri trasferimenti a famiglie;999;Altri trasferimenti a famiglie n.a.c.;17-01-2019;
53;22;74;"50,74";"2.279,02";TRUGLIO MARIA; ;D.LVO 65/13.04.2017 - CONTRIBUTO ALLE FAMIGLIE annualita' 2017;17-01-2019;1777;0;369;1;Spese correnti;4;Trasferimenti correnti;2;Trasferimenti correnti a Famiglie;5;Altri trasferimenti a famiglie;999;Altri trasferimenti a famiglie n.a.c.;17-01-2019;
53;23;75;"73,32";"2.279,02";TRUSSO ALO' FRANCESCA; ;D.LVO 65/13.04.2017 - CONTRIBUTO ALLE FAMIGLIE annualita' 2017;17-01-2019;1777;0;369;1;Spese correnti;4;Trasferimenti correnti;2;Trasferimenti correnti a Famiglie;5;Altri trasferimenti a famiglie;999;Altri trasferimenti a famiglie n.a.c.;17-01-2019;
54;1;76;"37,94";"1.346,87";ABBADESSA SEBASTIANO GIORGIO; ;GETTONI PRESENZA C.C. ANNO 2018;17-01-2019;1002;0;57;1;Spese correnti;3;Acquisto di beni e servizi;2;Acquisto di servizi;1;Organi e incarichi istituzionali dell'amministrazione;1;Organi istituzionali dell'amministrazione - Indennità;17-01-2019;
54;2;77;"113,82";"1.346,87";BIONDO ENZO; ;GETTONI PRESENZA C.C. ANNO 2018;17-01-2019;1002;0;57;1;Spese correnti;3;Acquisto di beni e servizi;2;Acquisto di servizi;1;Organi e incarichi istituzionali dell'amministrazione;1;Organi istituzionali dell'amministrazione - Indennità;17-01-2019;
54;3;78;"113,82";"1.346,87";CAMUTI GIAN LUCA; ;GETTONI PRESENZA C.C. ANNO 2018;17-01-2019;1002;0;57;1;Spese correnti;3;Acquisto di beni e servizi;2;Acquisto di servizi;1;Organi e incarichi istituzionali dell'amministrazione;1;Organi istituzionali dell'amministrazione - Indennità;17-01-2019;
54;4;79;"170,73";"1.346,87";DI BELLA GIANLUCA; ;GETTONI PRESENZA C.C. ANNO 2018;17-01-2019;1002;0;57;1;Spese correnti;3;Acquisto di beni e servizi;2;Acquisto di servizi;1;Organi e incarichi istituzionali dell'amministrazione;1;Organi istituzionali dell'amministrazione - Indennità;17-01-2019;
54;5;80;"151,76";"1.346,87";DI PERNA LUCIA; ;GETTONI PRESENZA C.C. ANNO 2018;17-01-2019;1002;0;57;1;Spese correnti;3;Acquisto di beni e servizi;2;Acquisto di servizi;1;Organi e incarichi istituzionali dell'amministrazione;1;Organi istituzionali dell'amministrazione - Indennità;17-01-2019;
54;6;81;"170,73";"1.346,87";FIORE SERGIO GAETANO; ;GETTONI PRESENZA C.C. ANNO 2018;17-01-2019;1002;0;57;1;Spese correnti;3;Acquisto di beni e servizi;2;Acquisto di servizi;1;Organi e incarichi istituzionali dell'amministrazione;1;Organi istituzionali dell'amministrazione - Indennità;17-01-2019;
54;7;82;"18,97";"1.346,87";FORZANO GIUSEPPE; ;GETTONI PRESENZA C.C. ANNO 2018;17-01-2019;1002;0;57;1;Spese correnti;3;Acquisto di beni e servizi;2;Acquisto di servizi;1;Organi e incarichi istituzionali dell'amministrazione;1;Organi istituzionali dell'amministrazione - Indennità;17-01-2019;
54;8;83;"151,76";"1.346,87";HAMLAOUI LEILA; ;GETTONI PRESENZA C.C. ANNO 2018;17-01-2019;1002;0;57;1;Spese correnti;3;Acquisto di beni e servizi;2;Acquisto di servizi;1;Organi e incarichi istituzionali dell'amministrazione;1;Organi istituzionali dell'amministrazione - Indennità;17-01-2019;
54;9;84;"151,76";"1.346,87";MARTINO DANIELA; ;GETTONI PRESENZA C.C. ANNO 2018;17-01-2019;1002;0;57;1;Spese correnti;3;Acquisto di beni e servizi;2;Acquisto di servizi;1;Organi e incarichi istituzionali dell'amministrazione;1;Organi istituzionali dell'amministrazione - Indennità;17-01-2019;
54;10;85;"170,73";"1.346,87";PAGANA FRANCESCO; ;GETTONI PRESENZA C.C. ANNO 2018;17-01-2019;1002;0;57;1;Spese correnti;3;Acquisto di beni e servizi;2;Acquisto di servizi;1;Organi e incarichi istituzionali dell'amministrazione;1;Organi istituzionali dell'amministrazione - Indennità;17-01-2019;
54;11;86;"94,85";"1.346,87";PAGLIAZZO VINCENZINA; ;GETTONI PRESENZA C.C. ANNO 2018;17-01-2019;1002;0;57;1;Spese correnti;3;Acquisto di beni e servizi;2;Acquisto di servizi;1;Organi e incarichi istituzionali dell'amministrazione;1;Organi istituzionali dell'amministrazione - Indennità;17-01-2019;
55;1;91;"440,00";"440,00";Ass.Culturale Compagnia Joculares;Z3C261B53A;SALDO Fatt.n. FATTPA 18_18  del 23/12/2018 spettacoli;21-01-2019;1520;1;483;1;Spese correnti;3;Acquisto di beni e servizi;2;Acquisto di servizi;2;"Organizzazione eventi, pubblicita` e servizi per trasferta";5;Organizzazione e partecipazione a manifestazioni e convegni;22-01-2019;
56;1;88;"82,64";"82,64";INTERDONATO GIACOMO S.N.C.; ;SALDO Fatt.n. 000004-2018-FE  del 28/12/2018 BUONI LIBRO A.S.2018/19;21-01-2019;2000;10;546;1;Spese correnti;3;Acquisto di beni e servizi;2;Acquisto di servizi;99;Altri servizi;999;Altri servizi diversi n.a.c.;21-01-2019;
57;1;89;"2.118,00";"2.118,00";CINTIOLI FULVIO; ;SALDO Fatt.n. 17E  del 28/12/2018 DETERMINA SINDACALE D'INCARICO N. 3 DEL 16.01.2009;21-01-2019;1058;0;72;1;Spese correnti;3;Acquisto di beni e servizi;2;Acquisto di servizi;99;Altri servizi;2;Altre spese legali;21-01-2019;
58;1;197;"7.173,60";"7.173,60";CREDITO VALTELLINESE S.P.A.; ;SALDO Fatt.n. 192  del 28/12/2018 COMPENSO SERVIZIO TESORERIA ANNO 2018;21-01-2019;1054;0;388;1;Spese correnti;3;Acquisto di beni e servizi;2;Acquisto di servizi;15;Contratti di servizio pubblico;999;Altre spese per contratti di servizio pubblico;07-02-2019;
59;1;90;"59,44";"194,03";HERA COMM S.r.l.; ;SALDO Fatt.n. 411810972209  del 24/12/2018 FORNITURA SERVIZIO ENERGIA ELETTRICA NOV.2018;21-01-2019;6030;13;467;1;Spese correnti;3;Acquisto di beni e servizi;2;Acquisto di servizi;5;Utenze e canoni;4;Energia elettrica;21-01-2019;
59;2;90;"134,59";"194,03";HERA COMM S.r.l.; ;SALDO Fatt.n. 411810972210  del 24/12/2018 FORNITURA SERVIZIO ENERGIA ELETTRICA NOV.2018;21-01-2019;6030;13;467;1;Spese correnti;3;Acquisto di beni e servizi;2;Acquisto di servizi;5;Utenze e canoni;4;Energia elettrica;21-01-2019;
106;1;163;"67,26";"67,26";PENNISI SALVATORE;ZD0232633A;Fatt.n. 773 del 12/12/2018 MANUTENZIONE ESTINTORI E NOLEGGIO ESTINTORI;28-01-2019;1025;0;174;1;Spese correnti;3;Acquisto di beni e servizi;2;Acquisto di servizi;9;Manutenzione ordinaria e riparazioni;8;Manutenzione ordinaria e riparazioni di beni immobili;28-01-2019;
107;1;164;"412,87";"412,87";PENNISI SALVATORE;ZD0232633A;Fatt.n. 773 del 12/12/2018 MANUTENZIONE ESTINTORI E NOLEGGIO ESTINTORI;28-01-2019;3010;5;337;2;Spese in conto capitale;2;Investimenti fissi lordi e acquisto di terreni;1;Beni materiali;9;Beni immobili;1;Fabbricati ad uso abitativo;28-01-2019;
108;1;165;"279,85";"279,85";PENNISI SALVATORE;ZD0232633A;Fatt.n. 773 del 12/12/2018 MANUTENZIONE ESTINTORI E NOLEGGIO ESTINTORI;28-01-2019;3010;5;518;2;Spese in conto capitale;2;Investimenti fissi lordi e acquisto di terreni;1;Beni materiali;9;Beni immobili;1;Fabbricati ad uso abitativo;28-01-2019;
109;1;166;"75,07";"75,07";SCAFIDI GIUSEPPE;Z1D2165AF9;Fatt.n. 000038-2018-FE del 28/12/2018 RIFERIMENTO PREVENTIVO 96/2018 DEL 12/11/2018 SU FIAT STILO TG CS789CA;28-01-2019;6070;1;484;1;Spese correnti;3;Acquisto di beni e servizi;2;Acquisto di servizi;9;Manutenzione ordinaria e riparazioni;1;"Manutenzione ordinaria e riparazioni di mezzi di trasporto ad uso civile, di sicurezza e ordine pubblico";28-01-2019;
110;1;167;"259,06";"259,06";SCAFIDI GIUSEPPE;Z1D2165AF9;Fatt.n. 000038-2018-FE del 28/12/2018 RIFERIMENTO PREVENTIVO 96/2018 DEL 12/11/2018 SU FIAT STILO TG CS789CA;28-01-2019;6070;1;541;1;Spese correnti;3;Acquisto di beni e servizi;2;Acquisto di servizi;9;Manutenzione ordinaria e riparazioni;1;"Manutenzione ordinaria e riparazioni di mezzi di trasporto ad uso civile, di sicurezza e ordine pubblico";28-01-2019;
111;1;168;"488,98";"488,98";SCAFIDI GIUSEPPE;Z1D2165AF9;Fatt.n. 000037-2018-FE del 28/12/2018 RIFERIMENTO PREVENTIVO 95/2018 DEL 12/11/2018 SU P.I.K. TG CN190JJ;28-01-2019;6070;5;544;1;Spese correnti;3;Acquisto di beni e servizi;2;Acquisto di servizi;9;Manutenzione ordinaria e riparazioni;1;"Manutenzione ordinaria e riparazioni di mezzi di trasporto ad uso civile, di sicurezza e ordine pubblico";28-01-2019;
112;1;169;"117,66";"117,66";SCAFIDI GIUSEPPE;Z1D2165AF9;Fatt.n. 000036-2018-FE del 28/12/2018 RIF. PREVENTIVO N.97/2018 DEL 12/11/2018 SU SCUOLABUS IVECO DAILY TG CT940ML;28-01-2019;6070;9;487;1;Spese correnti;3;Acquisto di beni e servizi;2;Acquisto di servizi;9;Manutenzione ordinaria e riparazioni;1;"Manutenzione ordinaria e riparazioni di mezzi di trasporto ad uso civile, di sicurezza e ordine pubblico";28-01-2019;
113;1;170;"300,00";"300,00";SCAFIDI GIUSEPPE;Z572619A30;Fatt.n. 000042-2018-FE del 28/12/2018 RIFERIMENTO PREVENTIVO 100F/2018 DEL 26/11/2018 SU PIAGGIO PORTER TG DD917SG;28-01-2019;6070;4;488;1;Spese correnti;3;Acquisto di beni e servizi;2;Acquisto di servizi;9;Manutenzione ordinaria e riparazioni;1;"Manutenzione ordinaria e riparazioni di mezzi di trasporto ad uso civile, di sicurezza e ordine pubblico";28-01-2019;
114;1;171;"229,99";"229,99";SCAFIDI GIUSEPPE;Z572619A30;Fatt.n. 000040-2018-FE del 28/12/2018 RIFERIMENTO PREVENTIVO 100C/2018 DEL 26/11/2018 SU  FIAT PANDA S TG BE181ZH;28-01-2019;6070;5;489;1;Spese correnti;3;Acquisto di beni e servizi;2;Acquisto di servizi;9;Manutenzione ordinaria e riparazioni;1;"Manutenzione ordinaria e riparazioni di mezzi di trasporto ad uso civile, di sicurezza e ordine pubblico";28-01-2019;
115;1;172;"229,99";"229,99";SCAFIDI GIUSEPPE;Z572619A30;Fatt.n. 000041-2018-FE del 28/12/2018 RIFERIMENTO PREVENTIVO 100E/2018 DEL 26/11/2018 SU FIAT PANDA TG BE180ZH;28-01-2019;6070;7;490;1;Spese correnti;3;Acquisto di beni e servizi;2;Acquisto di servizi;9;Manutenzione ordinaria e riparazioni;1;"Manutenzione ordinaria e riparazioni di mezzi di trasporto ad uso civile, di sicurezza e ordine pubblico";28-01-2019;
116;1;173;"207,00";"207,00";SCAFIDI GIUSEPPE;Z572619A30;Fatt.n. 000039-2018-FE del 28/12/2018 RIFERIMENTO PREVENTIVO 100B/2018 DEL 26/11/2018 SU SCUOLABUS TG CT940ML;28-01-2019;6070;9;491;1;Spese correnti;3;Acquisto di beni e servizi;2;Acquisto di servizi;9;Manutenzione ordinaria e riparazioni;1;"Manutenzione ordinaria e riparazioni di mezzi di trasporto ad uso civile, di sicurezza e ordine pubblico";28-01-2019;
117;1;174;"3.432,00";"3.432,00";PANTANO TONY;Z0F24354C4;SALDO Fatt.n. 2/FE  del 28/12/2018 Acconto per prestazione professionale relativa all'incarico professionale ricevuto con determina n.104 del 04/07/2018.;28-01-2019;2220;0;199;2;Spese in conto capitale;2;Investimenti fissi lordi e acquisto di terreni;3;Beni immateriali;5;Incarichi professionali per la realizzazione di investimenti;1;Incarichi professionali per la realizzazione di investimenti;28-01-2019;
118;1;175;"757,12";"757,12";Miragliotta Carmelo;Z0F24354C4;SALDO Fatt.n. FATTPA 1_18  del 28/12/2018 ACC. PRESTAZIONE PROFESSIONALE;28-01-2019;2220;0;199;2;Spese in conto capitale;2;Investimenti fissi lordi e acquisto di terreni;3;Beni immateriali;5;Incarichi professionali per la realizzazione di investimenti;1;Incarichi professionali per la realizzazione di investimenti;28-01-2019;
119;1;176;"1.200,00";"1.200,00";PITINO ELEONORA;7612245F48;SALDO Fatt.n. 000004-2018-FTE  del 17/12/2018 CIG: 7612245F48-ONORARIO COMPONENTE COMMISSIONE DI GARA SERVIZIO MENSA SCOLASTICA;29-01-2019;2000;8;565;1;Spese correnti;3;Acquisto di beni e servizi;2;Acquisto di servizi;15;Contratti di servizio pubblico;6;Contratti di servizio per le mense scolastiche;29-01-2019;
120;1;177;"1.290,27";"1.290,27";LO PRESTI GIORGIO;Z7626870D6;SALDO Fatt.n. FATTPA 1_19  del 03/01/2019 somma urgenza del 19/12/18 convogliamneto e allontanamento acque serbatoio idrico Liparotto;29-01-2019;4035;0;589;2;Spese in conto capitale;2;Investimenti fissi lordi e acquisto di terreni;1;Beni materiali;9;Beni immobili;13;Altre vie di comunicazione;29-01-2019;
121;1;178;"2.620,18";"2.620,18";BENFATTA SALVATORE & C. S.N.C.;ZA02687064;SALDO Fatt.n. 1  del 03/01/2019 somma urgenza del 12/12/18 ripristino condotta idrica;29-01-2019;4035;0;590;2;Spese in conto capitale;2;Investimenti fissi lordi e acquisto di terreni;1;Beni materiali;9;Beni immobili;13;Altre vie di comunicazione;29-01-2019;
122;1;179;"22.858,24";"22.858,24";ECOLANDIA SRL;75280149AB;"SALDO Fatt.n. 225/PA  del 31/12/2018 SERVIZIO DI SPAZZAMENTO, RACCOLTA E TRASPORTO ALLO SMALTIMENTO DEI RIFIUTI SOLIDI URBANI DIFFERENZIATI E INDIFFERENZIATI, PER IL COMUNE DI SAN PIERO PATTI (ME) ED ESTENSIONE SERVIZIO PORTA A PORTA NEL";29-01-2019;1744;0;386;1;Spese correnti;3;Acquisto di beni e servizi;2;Acquisto di servizi;15;Contratti di servizio pubblico;5;Contratti di servizio per il conferimento in discarica dei rifiuti;29-01-2019;
123;1;180;"23,06";"23,06";Libreria Capitolo18 di Teodoro Cafarelli; ;ACCONTO Fatt.n. 4/PA  del 05/01/2019 buoni libro a.s.2019/2020;29-01-2019;2000;10;548;1;Spese correnti;3;Acquisto di beni e servizi;2;Acquisto di servizi;99;Altri servizi;999;Altri servizi diversi n.a.c.;29-01-2019;
124;1;181;"38,91";"38,91";Libreria Capitolo18 di Teodoro Cafarelli; ;SALDO Fatt.n. 4/PA  del 05/01/2019 buoni libro a.s.2019/2020;29-01-2019;2000;10;548;1;Spese correnti;3;Acquisto di beni e servizi;2;Acquisto di servizi;99;Altri servizi;999;Altri servizi diversi n.a.c.;29-01-2019;
125;1;182;"1.563,32";"1.563,32";TRINACRIA AMBIENTE E TECNOLOGIE S.R.L.;ZCB23E55EC;SALDO Fatt.n. FATTPA 50_18  del 31/12/2018 manutenz. e gestione imp. depuraz. arabite nov./dic.2018;29-01-2019;1577;1;183;1;Spese correnti;3;Acquisto di beni e servizi;2;Acquisto di servizi;9;Manutenzione ordinaria e riparazioni;11;Manutenzione ordinaria e riparazioni di altri beni materiali;29-01-2019;
126;1;183;"41,32";"41,32";"Libreria Mosca sas di Mosca Antonio &amp; C."; ;SALDO Fatt.n. 1005  del 08/01/2019 BUONI LIBRO A.S.2018/2019;29-01-2019;2000;10;548;1;Spese correnti;3;Acquisto di beni e servizi;2;Acquisto di servizi;99;Altri servizi;999;Altri servizi diversi n.a.c.;29-01-2019;
127;1;184;"50,37";"50,37";Ministero dell'Interno Dipartimento Servizi Demografici; ;COMUNE DI SAN PIERO PATTI-CORRISPETTIVO RILASCIO N. 3 C.I.E. dal 16/12 al 31/12/2018;29-01-2019;1037;2;624;1;Spese correnti;4;Trasferimenti correnti;1;Trasferimenti correnti a Amministrazioni Pubbliche;1;Trasferimenti correnti a Amministrazioni Centrali;1;Trasferimenti correnti a Ministeri;29-01-2019;
128;1;186;"580,72";"580,72";MAGGIOLI S.p.A.;Z43253EA7C;SALDO Fatt.n. 0002149380  del 30/11/2018 RILEGATURA REGISTRI DI STATO CIVILE;30-01-2019;6050;4;351;1;Spese correnti;3;Acquisto di beni e servizi;1;Acquisto di beni;2;Altri beni di consumo;1;"Carta, cancelleria e stampati";30-01-2019;
130;1;187;"56,85";"56,85";MARTINO DANIELA; ;INDENNITA' FUNZIONE PRESIDENTE C.C. 16/12-31/12/2018;01-02-2019;1001;0;56;1;Spese correnti;3;Acquisto di beni e servizi;2;Acquisto di servizi;1;Organi e incarichi istituzionali dell'amministrazione;1;Organi istituzionali dell'amministrazione - Indennità;01-02-2019;
131;1;188;"1.518,37";"1.518,37";FIORE SALVATORE VITTORIO; ;Indennita' funzione gennaio 2019;01-02-2019;1001;0;13;1;Spese correnti;3;Acquisto di beni e servizi;2;Acquisto di servizi;1;Organi e incarichi istituzionali dell'amministrazione;1;Organi istituzionali dell'amministrazione - Indennità;01-02-2019;
132;1;189;"151,83";"182,05";INTERDONATO ARMANDO; ;Indennita' funzione gennaio 2019;01-02-2019;1001;0;13;1;Spese correnti;3;Acquisto di beni e servizi;2;Acquisto di servizi;1;Organi e incarichi istituzionali dell'amministrazione;1;Organi istituzionali dell'amministrazione - Indennità;01-02-2019;
132;2;190;"30,22";"182,05";LAMANCUSA MARCO; ;Indennita' funzione gennaio 2019 e conguaglio ott./dic.2018;01-02-2019;1001;0;13;1;Spese correnti;3;Acquisto di beni e servizi;2;Acquisto di servizi;1;Organi e incarichi istituzionali dell'amministrazione;1;Organi istituzionali dell'amministrazione - Indennità;01-02-2019;
133;1;191;"212,58";"212,58";PETTINATO  ROSA SANDRA; ;Indennita' funzione gen.2019;01-02-2019;1001;0;13;1;Spese correnti;3;Acquisto di beni e servizi;2;Acquisto di servizi;1;Organi e incarichi istituzionali dell'amministrazione;1;Organi istituzionali dell'amministrazione - Indennità;01-02-2019;
134;1;192;"1.522,56";"1.522,56";AMATA FERDINANDO;7612245F48;SALDO Fatt.n. FATTPA 15_18  del 05/12/2018 CIG7612245F48 - AFFIDAMENTO MENSA SCOLASTICA ISTITUTO COMPRENSIVO PLESSO SAN PIERO PATTI E PASTI PER ANZIANI IN CONDIZIONI DI DIFFICOLTA';01-02-2019;2000;8;564;1;Spese correnti;3;Acquisto di beni e servizi;2;Acquisto di servizi;15;Contratti di servizio pubblico;6;Contratti di servizio per le mense scolastiche;01-02-2019;
135;1;193;"1.520,46";"1.520,46";BUZZANCA NICOLINO;Z2D1649BCF;SALDO Fatt.n. 000003-2017-PA  del 31/07/2017 C.T. COLLAUDO LAVORI CONSOLIDAMENTO VIA L. DA VINCI;01-02-2019;5276;1;160;2;Spese in conto capitale;2;Investimenti fissi lordi e acquisto di terreni;1;Beni materiali;9;Beni immobili;13;Altre vie di comunicazione;01-02-2019;
136;1;195;"5.328,15";"5.328,15";Logiudice Nicola;Z0010E6031;SALDO Fatt.n. FATTPA 10_17  del 02/05/2017 collaudo statico lavori consolidamento via L.Da Vinci;01-02-2019;5276;1;160;2;Spese in conto capitale;2;Investimenti fissi lordi e acquisto di terreni;1;Beni materiali;9;Beni immobili;13;Altre vie di comunicazione;06-02-2019;
138;1;196;"142,41";"142,41";CASSA PER I SERVIZI ENERGETICI E AMBIENTALI; ;S.I.I.-VERSAMENTO DICHIARAZIONE UI1 AANO 2018 5 BIM.-DICHIARAZIONE REC ANNO 2018 5 E 6 BIMESTRE;06-02-2019;1687;0;511;1;Spese correnti;4;Trasferimenti correnti;3;Trasferimenti correnti a Imprese;99;Trasferimenti correnti a altre imprese;999;Trasferimenti correnti a altre imprese;07-02-2019;
139;1;198;"0,23";"1,26";TELEPASS SPA;Z812686DEB;ACCONTO Fatt.n. 900001282T  del 30/01/2019 CANONE TELEPASS GEN.2019;07-02-2019;1017;0;602;1;Spese correnti;3;Acquisto di beni e servizi;2;Acquisto di servizi;99;Altri servizi;999;Altri servizi diversi n.a.c.;07-02-2019;
139;2;198;"1,03";"1,26";TELEPASS SPA;Z812686DEB;SALDO Fatt.n. 900001282T  del 30/01/2019 CANONE TELEPASS GEN.2019;07-02-2019;1017;0;602;1;Spese correnti;3;Acquisto di beni e servizi;2;Acquisto di servizi;99;Altri servizi;999;Altri servizi diversi n.a.c.;07-02-2019;
140;1;199;"11,79";"65,40";AUTOSTRADE PER L'ITALIA S.p.A.;Z812686DEB;ACCONTO Fatt.n. 900001329D  del 30/01/2019 PEDAGGI AUTOSTRADALI GEN.2019;07-02-2019;1017;0;601;1;Spese correnti;3;Acquisto di beni e servizi;2;Acquisto di servizi;99;Altri servizi;999;Altri servizi diversi n.a.c.;07-02-2019;
140;2;185;"53,61";"65,40";AUTOSTRADE PER L'ITALIA S.p.A.;Z812686DEB;SALDO Fatt.n. 900001329D  del 30/01/2019 PEDAGGI AUTOSTRADALI GEN.2019;07-02-2019;1017;0;601;1;Spese correnti;3;Acquisto di beni e servizi;2;Acquisto di servizi;99;Altri servizi;999;Altri servizi diversi n.a.c.;07-02-2019;
141;1;200;"500,00";"500,00";ASSOCIAZIONE LUOGHI NARRANTI;ZF426408F1;SALDO Fatt.n. 000001-2019-PA  del 10/01/2019 Prestazione servizi - compensi attivitÃ  promozionale borgo di San Piero Patti anno 2019;07-02-2019;1477;0;529;1;Spese correnti;10;Altre spese correnti;99;Altre spese correnti n.a.c.;99;Altre spese correnti n.a.c.;999;Altre spese correnti n.a.c.;07-02-2019;
142;1;201;"340,38";"340,38";MAGGIOLI S.p.A.;Z1325FEE06;SALDO Fatt.n. 0002152029  del 12/12/2018 FOGLI REGISTRI STATO CIVILE;07-02-2019;6050;4;401;1;Spese correnti;3;Acquisto di beni e servizi;1;Acquisto di beni;2;Altri beni di consumo;1;"Carta, cancelleria e stampati";07-02-2019;
143;1;202;"852,68";"852,68";SIAE; ;SALDO Fatt.n. 1619001204  del 10/01/2019 DIRITTI SIAE  TRATTENIMENTO MUSICA;07-02-2019;1520;1;496;1;Spese correnti;3;Acquisto di beni e servizi;2;Acquisto di servizi;2;"Organizzazione eventi, pubblicita` e servizi per trasferta";5;Organizzazione e partecipazione a manifestazioni e convegni;07-02-2019;
144;1;203;"2.177,70";"2.177,70";HALLEY SUD SRL;Z001C8D941;SALDO Fatt.n. 201900007  del 11/01/2019 Canone di assistenza Software dal 01/10/2018 al 31/12/2018;07-02-2019;2100;2;496;1;Spese correnti;3;Acquisto di beni e servizi;2;Acquisto di servizi;19;Servizi informatici e di telecomunicazioni;5;Servizi per i sistemi e relativa manutenzione;07-02-2019;
145;1;208;"197,15";"197,15";TELECOM ITALIA S.P.A.-TIM SPA;ZE9263E69A;SALDO Fatt.n. 8V00018779  del 09/01/2019 FATT. I BIM.2019;07-02-2019;6040;9;523;1;Spese correnti;3;Acquisto di beni e servizi;2;Acquisto di servizi;5;Utenze e canoni;1;Telefonia fissa;08-02-2019;
146;1;204;"562,50";"562,50";MASSARA TINDARA; ;SALDO Fatt.n. 000001-2019-PA  del 04/01/2019 saldo comp. causa civile mazzeo giuseppa;07-02-2019;1058;0;131;1;Spese correnti;3;Acquisto di beni e servizi;2;Acquisto di servizi;99;Altri servizi;2;Altre spese legali;07-02-2019;
147;1;205;"4.055,87";"4.055,87";SICULA TRASPORTI S.R.L.;6150991658;SALDO Fatt.n. 2483/03  del 31/12/2018 CONFERIMENTO RIFIUTI IN DISCARICA DIC.2018;07-02-2019;1743;0;384;1;Spese correnti;3;Acquisto di beni e servizi;2;Acquisto di servizi;15;Contratti di servizio pubblico;5;Contratti di servizio per il conferimento in discarica dei rifiuti;07-02-2019;
148;1;206;"324,27";"9.145,77";CARTAREGIA COSIMO;Z032181600;SALDO Fatt.n. 22/PA  del 09/11/2018 lRif. Determina prot. 04  dell'11/01/2018MANUTENZ. IMP. PUBBL. ILL. OTT.2018;07-02-2019;3930;1;586;1;Spese correnti;3;Acquisto di beni e servizi;2;Acquisto di servizi;15;Contratti di servizio pubblico;999;Altre spese per contratti di servizio pubblico;07-02-2019;
148;2;206;"1.303,86";"9.145,77";CARTAREGIA COSIMO;Z032181600;SALDO Fatt.n. 21/PA  del 09/11/2018 lRif. Determina prot. 04  dell'11/01/2018-MANUTENZ. IMP. PUBBL. ILL. SETT.2018;07-02-2019;3930;1;586;1;Spese correnti;3;Acquisto di beni e servizi;2;Acquisto di servizi;15;Contratti di servizio pubblico;999;Altre spese per contratti di servizio pubblico;07-02-2019;
148;3;206;"428,49";"9.145,77";CARTAREGIA COSIMO;Z032181600;SALDO Fatt.n. 25/PA  del 31/12/2018 Rif. Determina prot.04 dell'11/01/2018-manutenz. imp. pubbl. ill. nov.2018;07-02-2019;3930;1;586;1;Spese correnti;3;Acquisto di beni e servizi;2;Acquisto di servizi;15;Contratti di servizio pubblico;999;Altre spese per contratti di servizio pubblico;07-02-2019;
148;4;206;"2.670,43";"9.145,77";CARTAREGIA COSIMO;Z032181600;ACCONTO Fatt.n. 22/PA  del 09/11/2018 lRif. Determina prot. 04  dell'11/01/2018MANUTENZ. IMP. PUBBL. ILL. OTT.2018;07-02-2019;3930;1;586;1;Spese correnti;3;Acquisto di beni e servizi;2;Acquisto di servizi;15;Contratti di servizio pubblico;999;Altre spese per contratti di servizio pubblico;07-02-2019;
148;5;206;"4.418,72";"9.145,77";CARTAREGIA COSIMO;Z032181600;SALDO Fatt.n. 26/PA  del 31/12/2018 Rif. Determina prot.04 dell'11/01/2018-MANUTENZ. IMP. PUBBLICA ILLUMINAZIONE DIC.2018;07-02-2019;3930;1;586;1;Spese correnti;3;Acquisto di beni e servizi;2;Acquisto di servizi;15;Contratti di servizio pubblico;999;Altre spese per contratti di servizio pubblico;07-02-2019;
149;1;210;"817,40";"817,40";SCHEPISI TINDARO;Z6326352B6;SALDO Fatt.n. FPA 2/18  del 12/12/2018 Fornitura e montaggio albero di natale 2018;11-02-2019;1520;1;510;1;Spese correnti;3;Acquisto di beni e servizi;2;Acquisto di servizi;2;"Organizzazione eventi, pubblicita` e servizi per trasferta";5;Organizzazione e partecipazione a manifestazioni e convegni;12-02-2019;
150;1;211;"214,57";"684,09";Energetic S.p.A.;7491316D84;SALDO Fatt.n. EEX04811/2019  del 09/01/2019 Servizio di fornitura Energia Elettrica dicembre 2018;11-02-2019;6030;5;459;1;Spese correnti;3;Acquisto di beni e servizi;2;Acquisto di servizi;5;Utenze e canoni;4;Energia elettrica;12-02-2019;
150;2;211;"469,52";"684,09";Energetic S.p.A.;7491316D84;SALDO Fatt.n. EEX04817/2019  del 09/01/2019 Servizio di fornitura Energia Elettrica dicembre 2018;11-02-2019;6030;5;459;1;Spese correnti;3;Acquisto di beni e servizi;2;Acquisto di servizi;5;Utenze e canoni;4;Energia elettrica;12-02-2019;
151;1;212;"38,10";"38,10";Energetic S.p.A.;7491316D84;Fatt.n. EEX04812/2019 del 09/01/2019 Servizio di fornitura Energia Elettrica dicembre 2018;11-02-2019;6030;6;460;1;Spese correnti;3;Acquisto di beni e servizi;2;Acquisto di servizi;5;Utenze e canoni;4;Energia elettrica;12-02-2019;
152;1;213;"37,32";"82,51";Energetic S.p.A.;7491316D84;Fatt.n. EEX04804/2019 del 09/01/2019 Servizio di fornitura Energia Elettrica dicembre 2018;11-02-2019;6030;8;462;1;Spese correnti;3;Acquisto di beni e servizi;2;Acquisto di servizi;5;Utenze e canoni;4;Energia elettrica;12-02-2019;
152;2;213;"45,19";"82,51";Energetic S.p.A.;7491316D84;Fatt.n. EEX04826/2019 del 09/01/2019 Servizio di fornitura energia elettrica dic.2018;11-02-2019;6030;8;462;1;Spese correnti;3;Acquisto di beni e servizi;2;Acquisto di servizi;5;Utenze e canoni;4;Energia elettrica;12-02-2019;
153;1;214;"432,34";"432,34";Energetic S.p.A.;7491316D84;Fatt.n. EEX04815/2019 del 09/01/2019 Servizio di fornitura Energia Elettrica dicembre 2018;11-02-2019;6030;9;463;1;Spese correnti;3;Acquisto di beni e servizi;2;Acquisto di servizi;5;Utenze e canoni;4;Energia elettrica;12-02-2019;
154;1;215;"313,27";"313,27";Energetic S.p.A.;7491316D84;Fatt.n. EEX04819/2019 del 09/01/2019 Servizio di fornitura Energia Elettrica dicembre 2018;11-02-2019;6030;10;464;1;Spese correnti;3;Acquisto di beni e servizi;2;Acquisto di servizi;5;Utenze e canoni;4;Energia elettrica;12-02-2019;
155;1;216;"186,49";"554,98";Energetic S.p.A.;7491316D84;Fatt.n. EEX04814/2019 del 09/01/2019 Servizio di fornitura Energia Elettrica dicembre 2018;11-02-2019;6030;11;465;1;Spese correnti;3;Acquisto di beni e servizi;2;Acquisto di servizi;5;Utenze e canoni;4;Energia elettrica;12-02-2019;
155;2;216;"368,49";"554,98";Energetic S.p.A.;7491316D84;Fatt.n. EEX04809/2019 del 09/01/2019 Servizio di fornitura Energia Elettrica dicembre 2018;11-02-2019;6030;11;465;1;Spese correnti;3;Acquisto di beni e servizi;2;Acquisto di servizi;5;Utenze e canoni;4;Energia elettrica;12-02-2019;
156;1;217;"6,47";"15.863,30";Energetic S.p.A.;7491316D84;Fatt.n. EEX04818/2019 del 09/01/2019 Servizio di fornitura Energia Elettrica dicembre 2018;11-02-2019;6030;12;466;1;Spese correnti;3;Acquisto di beni e servizi;2;Acquisto di servizi;5;Utenze e canoni;4;Energia elettrica;12-02-2019;
156;2;217;"11,94";"15.863,30";Energetic S.p.A.;7491316D84;Fatt.n. EEX04983/2019 del 09/01/2019 Servizio di fornitura Energia Elettrica dicembre 2018;11-02-2019;6030;12;466;1;Spese correnti;3;Acquisto di beni e servizi;2;Acquisto di servizi;5;Utenze e canoni;4;Energia elettrica;12-02-2019;
156;3;217;"17,76";"15.863,30";Energetic S.p.A.;7491316D84;Fatt.n. EEX04820/2019 del 09/01/2019 Servizio di fornitura Energia Elettrica dicembre 2018;11-02-2019;6030;12;466;1;Spese correnti;3;Acquisto di beni e servizi;2;Acquisto di servizi;5;Utenze e canoni;4;Energia elettrica;12-02-2019;
156;4;217;"32,00";"15.863,30";Energetic S.p.A.;7491316D84;Fatt.n. EEX04795/2019 del 09/01/2019 Servizio di fornitura Energia Elettrica dicembre 2018;11-02-2019;6030;12;466;1;Spese correnti;3;Acquisto di beni e servizi;2;Acquisto di servizi;5;Utenze e canoni;4;Energia elettrica;12-02-2019;
156;5;217;"40,70";"15.863,30";Energetic S.p.A.;7491316D84;Fatt.n. EEX04906/2019 del 09/01/2019 Servizio di fornitura Energia Elettrica dicembre 2018;11-02-2019;6030;12;466;1;Spese correnti;3;Acquisto di beni e servizi;2;Acquisto di servizi;5;Utenze e canoni;4;Energia elettrica;12-02-2019;
156;6;217;"50,06";"15.863,30";Energetic S.p.A.;7491316D84;Fatt.n. EEX04895/2019 del 09/01/2019 Servizio di fornitura energia elettrica dic.2018;11-02-2019;6030;12;466;1;Spese correnti;3;Acquisto di beni e servizi;2;Acquisto di servizi;5;Utenze e canoni;4;Energia elettrica;12-02-2019;
156;7;217;"76,91";"15.863,30";Energetic S.p.A.;7491316D84;Fatt.n. EEX04824/2019 del 09/01/2019 Servizio di fornitura Energia Elettrica dicembre 2018;11-02-2019;6030;12;466;1;Spese correnti;3;Acquisto di beni e servizi;2;Acquisto di servizi;5;Utenze e canoni;4;Energia elettrica;12-02-2019;
156;8;217;"80,78";"15.863,30";Energetic S.p.A.;7491316D84;Fatt.n. EEX05065/2019 del 09/01/2019 Servizio di fornitura Energia Elettrica dicembre 2018;11-02-2019;6030;12;466;1;Spese correnti;3;Acquisto di beni e servizi;2;Acquisto di servizi;5;Utenze e canoni;4;Energia elettrica;12-02-2019;
156;9;217;"90,84";"15.863,30";Energetic S.p.A.;7491316D84;Fatt.n. EEX05059/2019 del 09/01/2019 Servizio di fornitura Energia Elettrica dicembre 2018;11-02-2019;6030;12;466;1;Spese correnti;3;Acquisto di beni e servizi;2;Acquisto di servizi;5;Utenze e canoni;4;Energia elettrica;12-02-2019;
156;10;217;"96,90";"15.863,30";Energetic S.p.A.;7491316D84;Fatt.n. EEX04837/2019 del 09/01/2019 Servizio di fornitura Energia Elettrica dicembre 2018;11-02-2019;6030;12;466;1;Spese correnti;3;Acquisto di beni e servizi;2;Acquisto di servizi;5;Utenze e canoni;4;Energia elettrica;12-02-2019;
156;11;217;"101,42";"15.863,30";Energetic S.p.A.;7491316D84;Fatt.n. EEX04839/2019 del 09/01/2019 Servizio di fornitura energia elettrica dic.2018;11-02-2019;6030;12;466;1;Spese correnti;3;Acquisto di beni e servizi;2;Acquisto di servizi;5;Utenze e canoni;4;Energia elettrica;12-02-2019;
156;12;217;"101,64";"15.863,30";Energetic S.p.A.;7491316D84;Fatt.n. EEX05062/2019 del 09/01/2019 Servizio di fornitura Energia Elettrica dicembre 2018;11-02-2019;6030;12;466;1;Spese correnti;3;Acquisto di beni e servizi;2;Acquisto di servizi;5;Utenze e canoni;4;Energia elettrica;12-02-2019;
156;13;217;"108,97";"15.863,30";Energetic S.p.A.;7491316D84;Fatt.n. EEX05058/2019 del 09/01/2019 Servizio di fornitura Energia Elettrica dicembre 2018;11-02-2019;6030;12;466;1;Spese correnti;3;Acquisto di beni e servizi;2;Acquisto di servizi;5;Utenze e canoni;4;Energia elettrica;12-02-2019;
156;14;217;"131,03";"15.863,30";Energetic S.p.A.;7491316D84;Fatt.n. EEX04890/2019 del 09/01/2019 Servizio di fornitura Energia Elettrica dicembre 2018;11-02-2019;6030;12;466;1;Spese correnti;3;Acquisto di beni e servizi;2;Acquisto di servizi;5;Utenze e canoni;4;Energia elettrica;12-02-2019;
156;15;217;"132,24";"15.863,30";Energetic S.p.A.;7491316D84;Fatt.n. EEX04894/2019 del 09/01/2019 Servizio di fornitura Energia Elettrica dicembre 2018;11-02-2019;6030;12;466;1;Spese correnti;3;Acquisto di beni e servizi;2;Acquisto di servizi;5;Utenze e canoni;4;Energia elettrica;12-02-2019;
156;16;217;"136,01";"15.863,30";Energetic S.p.A.;7491316D84;Fatt.n. EEX04838/2019 del 09/01/2019 Servizio di fornitura Energia Elettrica dicembre 2018;11-02-2019;6030;12;466;1;Spese correnti;3;Acquisto di beni e servizi;2;Acquisto di servizi;5;Utenze e canoni;4;Energia elettrica;12-02-2019;
156;17;217;"140,09";"15.863,30";Energetic S.p.A.;7491316D84;Fatt.n. EEX04793/2019 del 09/01/2019 Servizio di fornitura Energia Elettrica dicembre 2018;11-02-2019;6030;12;466;1;Spese correnti;3;Acquisto di beni e servizi;2;Acquisto di servizi;5;Utenze e canoni;4;Energia elettrica;12-02-2019;
156;18;217;"142,13";"15.863,30";Energetic S.p.A.;7491316D84;Fatt.n. EEX04892/2019 del 09/01/2019 Servizio di fornitura Energia Elettrica dicembre 2018;11-02-2019;6030;12;466;1;Spese correnti;3;Acquisto di beni e servizi;2;Acquisto di servizi;5;Utenze e canoni;4;Energia elettrica;12-02-2019;
156;19;217;"183,76";"15.863,30";Energetic S.p.A.;7491316D84;Fatt.n. EEX04836/2019 del 09/01/2019 Servizio di fornitura energia elettrica dic.2018;11-02-2019;6030;12;466;1;Spese correnti;3;Acquisto di beni e servizi;2;Acquisto di servizi;5;Utenze e canoni;4;Energia elettrica;12-02-2019;
156;20;217;"292,47";"15.863,30";Energetic S.p.A.;7491316D84;Fatt.n. EEX04844/2019 del 09/01/2019 Servizio di fornitura Energia Elettrica dicembre 2018;11-02-2019;6030;12;466;1;Spese correnti;3;Acquisto di beni e servizi;2;Acquisto di servizi;5;Utenze e canoni;4;Energia elettrica;12-02-2019;
156;21;217;"295,87";"15.863,30";Energetic S.p.A.;7491316D84;Fatt.n. EEX04805/2019 del 09/01/2019 Servizio di fornitura Energia Elettrica dicembre 2018;11-02-2019;6030;12;466;1;Spese correnti;3;Acquisto di beni e servizi;2;Acquisto di servizi;5;Utenze e canoni;4;Energia elettrica;12-02-2019;
156;22;217;"305,55";"15.863,30";Energetic S.p.A.;7491316D84;Fatt.n. EEX04841/2019 del 09/01/2019 Servizio di fornitura Energia Elettrica dicembre 2018;11-02-2019;6030;12;466;1;Spese correnti;3;Acquisto di beni e servizi;2;Acquisto di servizi;5;Utenze e canoni;4;Energia elettrica;12-02-2019;
156;23;217;"307,07";"15.863,30";Energetic S.p.A.;7491316D84;Fatt.n. EEX04840/2019 del 09/01/2019 Servizio di fornitura Energia Elettrica dicembre 2018;11-02-2019;6030;12;466;1;Spese correnti;3;Acquisto di beni e servizi;2;Acquisto di servizi;5;Utenze e canoni;4;Energia elettrica;12-02-2019;
156;24;217;"314,59";"15.863,30";Energetic S.p.A.;7491316D84;Fatt.n. EEX04790/2019 del 09/01/2019 Servizio di fornitura Energia Elettrica dicembre 2018;11-02-2019;6030;12;466;1;Spese correnti;3;Acquisto di beni e servizi;2;Acquisto di servizi;5;Utenze e canoni;4;Energia elettrica;12-02-2019;
156;25;217;"350,07";"15.863,30";Energetic S.p.A.;7491316D84;Fatt.n. EEX05063/2019 del 09/01/2019 Servizio di fornitura Energia Elettrica dicembre 2018;11-02-2019;6030;12;466;1;Spese correnti;3;Acquisto di beni e servizi;2;Acquisto di servizi;5;Utenze e canoni;4;Energia elettrica;12-02-2019;
156;26;217;"376,88";"15.863,30";Energetic S.p.A.;7491316D84;Fatt.n. EEX04831/2019 del 09/01/2019 Servizio di fornitura energia elettrica dic.2018;11-02-2019;6030;12;466;1;Spese correnti;3;Acquisto di beni e servizi;2;Acquisto di servizi;5;Utenze e canoni;4;Energia elettrica;12-02-2019;
156;27;217;"463,70";"15.863,30";Energetic S.p.A.;7491316D84;Fatt.n. EEX05064/2019 del 09/01/2019 Servizio di fornitura energia elettrica dic.2018;11-02-2019;6030;12;466;1;Spese correnti;3;Acquisto di beni e servizi;2;Acquisto di servizi;5;Utenze e canoni;4;Energia elettrica;12-02-2019;
156;28;217;"513,80";"15.863,30";Energetic S.p.A.;7491316D84;Fatt.n. EEX05060/2019 del 09/01/2019 Servizio di fornitura Energia Elettrica dicembre 2018;11-02-2019;6030;12;466;1;Spese correnti;3;Acquisto di beni e servizi;2;Acquisto di servizi;5;Utenze e canoni;4;Energia elettrica;12-02-2019;
156;29;217;"668,49";"15.863,30";Energetic S.p.A.;7491316D84;Fatt.n. EEX04905/2019 del 09/01/2019 Servizio di fornitura energia elettrica dic.2018;11-02-2019;6030;12;466;1;Spese correnti;3;Acquisto di beni e servizi;2;Acquisto di servizi;5;Utenze e canoni;4;Energia elettrica;12-02-2019;
156;30;217;"683,97";"15.863,30";Energetic S.p.A.;7491316D84;Fatt.n. EEX05061/2019 del 09/01/2019 Servizio di fornitura energia elettrica dic.2018;11-02-2019;6030;12;466;1;Spese correnti;3;Acquisto di beni e servizi;2;Acquisto di servizi;5;Utenze e canoni;4;Energia elettrica;12-02-2019;
156;31;217;"740,04";"15.863,30";Energetic S.p.A.;7491316D84;Fatt.n. EEX04821/2019 del 09/01/2019 Servizio di fornitura Energia Elettrica dicembre 2018;11-02-2019;6030;12;466;1;Spese correnti;3;Acquisto di beni e servizi;2;Acquisto di servizi;5;Utenze e canoni;4;Energia elettrica;12-02-2019;
156;32;217;"2.485,79";"15.863,30";Energetic S.p.A.;7491316D84;Fatt.n. EEX04964/2019 del 09/01/2019 Servizio di fornitura energia elettrica dic.2018;11-02-2019;6030;12;466;1;Spese correnti;3;Acquisto di beni e servizi;2;Acquisto di servizi;5;Utenze e canoni;4;Energia elettrica;12-02-2019;
156;33;217;"6.383,36";"15.863,30";Energetic S.p.A.;7491316D84;Fatt.n. EEX04813/2019 del 09/01/2019 Servizio di fornitura Energia Elettrica dicembre 2018;11-02-2019;6030;12;466;1;Spese correnti;3;Acquisto di beni e servizi;2;Acquisto di servizi;5;Utenze e canoni;4;Energia elettrica;12-02-2019;
157;1;218;"9,60";"403,77";Energetic S.p.A.;7491316D84;Fatt.n. EEX04823/2019 del 09/01/2019 Servizio di fornitura energia elettrica dic.2018;11-02-2019;6030;13;467;1;Spese correnti;3;Acquisto di beni e servizi;2;Acquisto di servizi;5;Utenze e canoni;4;Energia elettrica;12-02-2019;
157;2;218;"19,91";"403,77";Energetic S.p.A.;7491316D84;Fatt.n. EEX04791/2019 del 09/01/2019 Servizio di fornitura Energia Elettrica dicembre 2018;11-02-2019;6030;13;467;1;Spese correnti;3;Acquisto di beni e servizi;2;Acquisto di servizi;5;Utenze e canoni;4;Energia elettrica;12-02-2019;
157;3;218;"38,22";"403,77";Energetic S.p.A.;7491316D84;Fatt.n. EEX04822/2019 del 09/01/2019 Servizio di fornitura Energia Elettrica dicembre 2018;11-02-2019;6030;13;467;1;Spese correnti;3;Acquisto di beni e servizi;2;Acquisto di servizi;5;Utenze e canoni;4;Energia elettrica;12-02-2019;
157;4;218;"47,73";"403,77";Energetic S.p.A.;7491316D84;Fatt.n. EEX04788/2019 del 09/01/2019 Servizio di fornitura Energia Elettrica dicembre 2018;11-02-2019;6030;13;467;1;Spese correnti;3;Acquisto di beni e servizi;2;Acquisto di servizi;5;Utenze e canoni;4;Energia elettrica;12-02-2019;
157;5;218;"288,31";"403,77";Energetic S.p.A.;7491316D84;Fatt.n. EEX04841/2019 del 09/01/2019 Servizio di fornitura Energia Elettrica dicembre 2018;11-02-2019;6030;13;467;1;Spese correnti;3;Acquisto di beni e servizi;2;Acquisto di servizi;5;Utenze e canoni;4;Energia elettrica;12-02-2019;
158;1;219;"119,92";"119,92";Energetic S.p.A.;7491316D84;Fatt.n. EEX04846/2019 del 09/01/2019 Servizio di fornitura Energia Elettrica dicembre 2018;11-02-2019;6030;14;468;1;Spese correnti;3;Acquisto di beni e servizi;2;Acquisto di servizi;5;Utenze e canoni;4;Energia elettrica;12-02-2019;
159;1;220;"67,94";"67,94";Energetic S.p.A.;7491316D84;Fatt.n. EEX04810/2019 del 09/01/2019 Servizio di fornitura Energia Elettrica dicembre 2018;11-02-2019;6030;16;469;1;Spese correnti;3;Acquisto di beni e servizi;2;Acquisto di servizi;5;Utenze e canoni;4;Energia elettrica;12-02-2019;
160;1;221;"39,16";"39,16";Energetic S.p.A.;7491316D84;Fatt.n. EEX04807/2019 del 09/01/2019 Servizio di fornitura Energia Elettrica dicembre 2018;11-02-2019;6030;17;470;1;Spese correnti;3;Acquisto di beni e servizi;2;Acquisto di servizi;5;Utenze e canoni;4;Energia elettrica;12-02-2019;
161;1;222;"19,13";"19,13";Energetic S.p.A.;7491316D84;Fatt.n. EEX04883/2019 del 09/01/2019 Servizio di fornitura Energia Elettrica dicembre 2018;11-02-2019;6030;18;471;1;Spese correnti;3;Acquisto di beni e servizi;2;Acquisto di servizi;5;Utenze e canoni;4;Energia elettrica;12-02-2019;
162;1;223;"67,38";"67,38";Energetic S.p.A.;7491316D84;Fatt.n. EEX04902/2019 del 09/01/2019 Servizio di fornitura Energia Elettrica dicembre 2018;11-02-2019;6030;19;472;1;Spese correnti;3;Acquisto di beni e servizi;2;Acquisto di servizi;5;Utenze e canoni;4;Energia elettrica;12-02-2019;
163;1;224;"3.224,19";"3.224,19";Q8 QUASER SRL;Z9A269C2FF;SALDO Fatt.n. 0030040309  del 17/01/2019 GASOLIO RISCALDAMENTO;11-02-2019;6060;5;9;1;Spese correnti;3;Acquisto di beni e servizi;1;Acquisto di beni;2;Altri beni di consumo;2;"Carburanti, combustibili e lubrificanti";12-02-2019;
164;1;225;"218,21";"218,21";T.A.I. SRL;ZF724B20C8;ACCONTO Fatt.n. FATTPA 21_18  del 31/12/2018 TRASPORTO STUDENTI DIC.2018;11-02-2019;2000;9;257;1;Spese correnti;3;Acquisto di beni e servizi;2;Acquisto di servizi;15;Contratti di servizio pubblico;2;Contratti di servizio di trasporto scolastico;12-02-2019;
165;1;226;"364,85";"364,85";T.A.I. SRL;ZF724B20C8;SALDO Fatt.n. FATTPA 21_18  del 31/12/2018 TRASPORTO STUDENTI DIC.2018;11-02-2019;2000;9;257;1;Spese correnti;3;Acquisto di beni e servizi;2;Acquisto di servizi;15;Contratti di servizio pubblico;2;Contratti di servizio di trasporto scolastico;12-02-2019;
166;1;227;"75,94";"75,94";AUTOLINEE MAGISTRO SRL;Z2D24B2334;SALDO Fatt.n. FATTPA 164_18  del 31/12/2018 TRASPORTO STUDENTI DIC.2018;11-02-2019;2000;9;256;1;Spese correnti;3;Acquisto di beni e servizi;2;Acquisto di servizi;15;Contratti di servizio pubblico;2;Contratti di servizio di trasporto scolastico;12-02-2019;
167;1;228;"500,00";"500,00";GULINO GIUSEPPE;Z4B263AD4F;SALDO Fatt.n. 1  del 17/01/2019;11-02-2019;1776;1;42;1;Spese correnti;3;Acquisto di beni e servizi;1;Acquisto di beni;2;Altri beni di consumo;999;Altri beni e materiali di consumo n.a.c.;12-02-2019;
168;1;229;"300,00";"300,00";PRO LOCO; ;CONTRIBUTO PER RISTAMPA CARTA TURISTICA;11-02-2019;1842;0;398;1;Spese correnti;4;Trasferimenti correnti;4;Trasferimenti correnti a Istituzioni Sociali Private;1;Trasferimenti correnti a Istituzioni Sociali Private;1;Trasferimenti correnti a Istituzioni Sociali Private;12-02-2019;
171;1;232;"1.908,88";"1.908,88";Wind Tre S.p.A.;ZE4263E737;SALDO Fatt.n. 2019E000000773  del 21/01/2019 FATTURAZIONE I BIM.2019;12-02-2019;6040;5;525;1;Spese correnti;3;Acquisto di beni e servizi;2;Acquisto di servizi;5;Utenze e canoni;1;Telefonia fissa;12-02-2019;
172;1;233;"610,35";"1.492,95";AL CENTESIMO SOC. COOP. S.R.L.;ZAF20DE63B;SALDO Fatt.n. 20/E  del 30/12/2018 GENERI ALIMENTARI PER ASILO NIDO DIC.2018;12-02-2019;1776;1;408;1;Spese correnti;3;Acquisto di beni e servizi;1;Acquisto di beni;2;Altri beni di consumo;999;Altri beni e materiali di consumo n.a.c.;12-02-2019;
172;2;233;"882,60";"1.492,95";AL CENTESIMO SOC. COOP. S.R.L.;ZAF20DE63B;SALDO Fatt.n. 11/E  del 29/07/2018 GENERI ALIMENTARI PER SILO NIDO GIU.2018;12-02-2019;1776;1;408;1;Spese correnti;3;Acquisto di beni e servizi;1;Acquisto di beni;2;Altri beni di consumo;999;Altri beni e materiali di consumo n.a.c.;12-02-2019;
173;1;234;"88,96";"88,96";AL CENTESIMO SOC. COOP. S.R.L.;ZC12122971;SALDO Fatt.n. 19/E  del 30/12/2018 CARNE PER ASILO NIDO DIC.2018;12-02-2019;1776;1;454;1;Spese correnti;3;Acquisto di beni e servizi;1;Acquisto di beni;2;Altri beni di consumo;999;Altri beni e materiali di consumo n.a.c.;12-02-2019;
174;1;235;"-0,01";"54,00";KUWAIT PETROLEUM ITALIA S.P.A.;6516542493;Fatt.n. PJ00662125 del 31/12/2018 CARBURANTE AUTOMEZZI COMUNALI DIC.2018;12-02-2019;6080;2;23;1;Spese correnti;3;Acquisto di beni e servizi;1;Acquisto di beni;2;Altri beni di consumo;2;"Carburanti, combustibili e lubrificanti";12-02-2019;
174;2;235;"54,01";"54,00";KUWAIT PETROLEUM ITALIA S.P.A.;6516542493;Fatt.n. PJ00662125 del 31/12/2018 CARBURANTE AUTOMEZZI COMUNALI DIC.2018;12-02-2019;6080;2;23;1;Spese correnti;3;Acquisto di beni e servizi;1;Acquisto di beni;2;Altri beni di consumo;2;"Carburanti, combustibili e lubrificanti";12-02-2019;
175;1;236;"700,58";"700,58";KUWAIT PETROLEUM ITALIA S.P.A.;6516542493;Fatt.n. PJ00662125 del 31/12/2018 CARBURANTE AUTOMEZZI COMUNALI DIC.2018;12-02-2019;6080;3;24;1;Spese correnti;3;Acquisto di beni e servizi;1;Acquisto di beni;2;Altri beni di consumo;2;"Carburanti, combustibili e lubrificanti";12-02-2019;
176;1;237;"277,47";"277,47";KUWAIT PETROLEUM ITALIA S.P.A.;6516542493;Fatt.n. PJ00662125 del 31/12/2018 CARBURANTE AUTOMEZZI COMUNALI DIC.2018;12-02-2019;6080;4;25;1;Spese correnti;3;Acquisto di beni e servizi;1;Acquisto di beni;2;Altri beni di consumo;2;"Carburanti, combustibili e lubrificanti";12-02-2019;
177;1;238;"250,00";"250,00";KUWAIT PETROLEUM ITALIA S.P.A.;6516542493;Fatt.n. PJ00662125 del 31/12/2018 CARBURANTE AUTOMEZZI COMUNALI DIC.2018;12-02-2019;6080;5;26;1;Spese correnti;3;Acquisto di beni e servizi;1;Acquisto di beni;2;Altri beni di consumo;2;"Carburanti, combustibili e lubrificanti";12-02-2019;
178;1;239;"178,00";"178,00";KUWAIT PETROLEUM ITALIA S.P.A.;6516542493;Fatt.n. PJ00662125 del 31/12/2018 CARBURANTE AUTOMEZZI COMUNALI DIC.2018;12-02-2019;6080;7;27;1;Spese correnti;3;Acquisto di beni e servizi;1;Acquisto di beni;2;Altri beni di consumo;2;"Carburanti, combustibili e lubrificanti";12-02-2019;
179;1;240;"1.683,60";"1.683,60";C.M.C. SRL;Z5F267DE6E;SALDO Fatt.n. 1/PA  del 18/01/2019 VERNICE PER SEGNALETICA;12-02-2019;2063;0;613;2;Spese in conto capitale;2;Investimenti fissi lordi e acquisto di terreni;1;Beni materiali;5;Attrezzature;999;Attrezzature n.a.c.;12-02-2019;
180;1;241;"1.086,23";"1.086,23";S.R.R. MESSINA PROVINCIA SOC. CONSOR. SPA; ;SALDO Fatt.n. 45  del 07/01/2019 QUOTA STRUTTURA AZIENDALE SRR MESSINA PROVINCIA;15-02-2019;1752;2;23;1;Spese correnti;4;Trasferimenti correnti;3;Trasferimenti correnti a Imprese;99;Trasferimenti correnti a altre imprese;999;Trasferimenti correnti a altre imprese;15-02-2019;
182;1;274;"402,48";"834,84";SCAFIDI GIUSEPPE;Z1D2165AF9;SALDO Fatt.n. 3/2019  del 16/01/2019 MANUTENZIONE BOB CAT AAD147;18-02-2019;6070;4;543;1;Spese correnti;3;Acquisto di beni e servizi;2;Acquisto di servizi;9;Manutenzione ordinaria e riparazioni;1;"Manutenzione ordinaria e riparazioni di mezzi di trasporto ad uso civile, di sicurezza e ordine pubblico";18-02-2019;
182;2;274;"432,36";"834,84";SCAFIDI GIUSEPPE;Z1D2165AF9;SALDO Fatt.n. 2/2019  del 16/01/2019 MANUTENZIONE AUTOMEZZO CN14288;18-02-2019;6070;4;543;1;Spese correnti;3;Acquisto di beni e servizi;2;Acquisto di servizi;9;Manutenzione ordinaria e riparazioni;1;"Manutenzione ordinaria e riparazioni di mezzi di trasporto ad uso civile, di sicurezza e ordine pubblico";18-02-2019;
183;1;275;"258,24";"1.323,29";SCAFIDI GIUSEPPE;Z1D2165AF9;SALDO Fatt.n. 4/2019  del 17/01/2019 manutenzione automezzo CT914ML;18-02-2019;6070;9;487;1;Spese correnti;3;Acquisto di beni e servizi;2;Acquisto di servizi;9;Manutenzione ordinaria e riparazioni;1;"Manutenzione ordinaria e riparazioni di mezzi di trasporto ad uso civile, di sicurezza e ordine pubblico";18-02-2019;
183;2;275;"1.065,05";"1.323,29";SCAFIDI GIUSEPPE;Z1D2165AF9;SALDO Fatt.n. 5/2019  del 17/01/2019 MANUTENZIONE AUTOMEZZO CT940ML;18-02-2019;6070;9;487;1;Spese correnti;3;Acquisto di beni e servizi;2;Acquisto di servizi;9;Manutenzione ordinaria e riparazioni;1;"Manutenzione ordinaria e riparazioni di mezzi di trasporto ad uso civile, di sicurezza e ordine pubblico";18-02-2019;
184;1;276;"273,60";"273,60";INTERDONATO GIACOMO S.N.C.;ZCE2662AA0;SALDO Fatt.n. 1/2019  del 17/01/2019 MATERIALE PER ASILO NIDO;18-02-2019;1776;0;321;1;Spese correnti;3;Acquisto di beni e servizi;1;Acquisto di beni;2;Altri beni di consumo;999;Altri beni e materiali di consumo n.a.c.;18-02-2019;
185;1;277;"204,00";"204,00";AZIENDA SANITARIA PROVINCIALE N.5; ;VIDIMAZIONE TABELLE DIETETICHE E CASSETTA PRONTO SOCCORSO PER MENSA SCOLASTICA A.S.2018/19;18-02-2019;2000;26;24;1;Spese correnti;3;Acquisto di beni e servizi;2;Acquisto di servizi;15;Contratti di servizio pubblico;6;Contratti di servizio per le mense scolastiche;19-02-2019;
187;1;279;"5.000,00";"5.000,00";A.S.D. NEW SICILIA PROMOTION; ;MANIFESTAZIONI ESTATE 2018-CONTRIBUTO SLALOM CITTA' DI SAN PIERO PATTI;21-02-2019;2000;7;552;1;Spese correnti;4;Trasferimenti correnti;4;Trasferimenti correnti a Istituzioni Sociali Private;1;Trasferimenti correnti a Istituzioni Sociali Private;1;Trasferimenti correnti a Istituzioni Sociali Private;21-02-2019;
188;1;280;"1.300,00";"1.300,00";A.S.D. PETRA; ;MANIFESTAZIONI ESTATE 2018-CONTRIBUTI;21-02-2019;2000;7;558;1;Spese correnti;4;Trasferimenti correnti;4;Trasferimenti correnti a Istituzioni Sociali Private;1;Trasferimenti correnti a Istituzioni Sociali Private;1;Trasferimenti correnti a Istituzioni Sociali Private;21-02-2019;
189;1;281;"18,60";"167,40";CANDIDO CARMELA; ;CONTRIBUTO LIBRI DI TESTO A.S. 2018/19;21-02-2019;2000;10;503;1;Spese correnti;3;Acquisto di beni e servizi;2;Acquisto di servizi;99;Altri servizi;999;Altri servizi diversi n.a.c.;21-02-2019;
189;2;282;"12,40";"167,40";DI STEFANO FILIPPO; ;CONTRIBUTO LIBRI DI TESTO A.S. 2018/19;21-02-2019;2000;10;503;1;Spese correnti;3;Acquisto di beni e servizi;2;Acquisto di servizi;99;Altri servizi;999;Altri servizi diversi n.a.c.;21-02-2019;
189;3;283;"12,40";"167,40";FALLO MARIA; ;CONTRIBUTO LIBRI DI TESTO A.S. 2018/19;21-02-2019;2000;10;503;1;Spese correnti;3;Acquisto di beni e servizi;2;Acquisto di servizi;99;Altri servizi;999;Altri servizi diversi n.a.c.;21-02-2019;
189;4;284;"12,40";"167,40";GRANATA VINCENZA; ;CONTRIBUTO LIBRI DI TESTO A.S. 2018/19;21-02-2019;2000;10;503;1;Spese correnti;3;Acquisto di beni e servizi;2;Acquisto di servizi;99;Altri servizi;999;Altri servizi diversi n.a.c.;21-02-2019;
189;5;285;"18,60";"167,40";LAQUIDARA SABINA; ;CONTRIBUTO LIBRI DI TESTO A.S. 2018/19;21-02-2019;2000;10;503;1;Spese correnti;3;Acquisto di beni e servizi;2;Acquisto di servizi;99;Altri servizi;999;Altri servizi diversi n.a.c.;21-02-2019;
189;6;392;"12,40";"167,40";MAGRETTI MARIA; ;CONTRIBUTO LIBRI DI TESTO A.S. 2018/19;21-02-2019;2000;10;503;1;Spese correnti;3;Acquisto di beni e servizi;2;Acquisto di servizi;99;Altri servizi;999;Altri servizi diversi n.a.c.;08-03-2019;
189;7;286;"18,60";"167,40";PANTANO KATIA; ;CONTRIBUTO LIBRI DI TESTO A.S. 2018/19;21-02-2019;2000;10;503;1;Spese correnti;3;Acquisto di beni e servizi;2;Acquisto di servizi;99;Altri servizi;999;Altri servizi diversi n.a.c.;21-02-2019;
189;8;287;"18,60";"167,40";PAOLILLO DANIELA; ;CONTRIBUTO LIBRI DI TESTO A.S. 2018/19;21-02-2019;2000;10;503;1;Spese correnti;3;Acquisto di beni e servizi;2;Acquisto di servizi;99;Altri servizi;999;Altri servizi diversi n.a.c.;21-02-2019;
189;9;288;"18,60";"167,40";PRESTIPINO ROSANNA; ;CONTRIBUTO LIBRI DI TESTO A.S. 2018/19;21-02-2019;2000;10;503;1;Spese correnti;3;Acquisto di beni e servizi;2;Acquisto di servizi;99;Altri servizi;999;Altri servizi diversi n.a.c.;21-02-2019;
189;10;289;"12,40";"167,40";PRINCIOTTA MARIA VINCENZA; ;CONTRIBUTO LIBRI DI TESTO A.S. 2018/19;21-02-2019;2000;10;503;1;Spese correnti;3;Acquisto di beni e servizi;2;Acquisto di servizi;99;Altri servizi;999;Altri servizi diversi n.a.c.;21-02-2019;
189;11;290;"12,40";"167,40";SCAVONE  MARIA TERESA; ;CONTRIBUTO LIBRI DI TESTO A.S. 2018/19;21-02-2019;2000;10;503;1;Spese correnti;3;Acquisto di beni e servizi;2;Acquisto di servizi;99;Altri servizi;999;Altri servizi diversi n.a.c.;21-02-2019;
190;1;291;"28,08";"28,08";HERA COMM S.r.l.; ;ACCONTO Fatt.n. 411900236724  del 11/01/2019 FORNITURA SERVIZIO ENERGIA ELETTRICA DIC.2018;21-02-2019;6030;7;461;1;Spese correnti;3;Acquisto di beni e servizi;2;Acquisto di servizi;5;Utenze e canoni;4;Energia elettrica;21-02-2019;
191;1;292;"1,22";"42,67";HERA COMM S.r.l.; ;ACCONTO Fatt.n. 411900236722  del 11/01/2019 FORNITURA SERVIZIO ENERGIA ELETTRICA DIC.2018;21-02-2019;6030;8;462;1;Spese correnti;3;Acquisto di beni e servizi;2;Acquisto di servizi;5;Utenze e canoni;4;Energia elettrica;21-02-2019;
191;2;292;"41,45";"42,67";HERA COMM S.r.l.; ;SALDO Fatt.n. 411900236724  del 11/01/2019 FORNITURA SERVIZIO ENERGIA ELETTRICA DIC.2018;21-02-2019;6030;8;462;1;Spese correnti;3;Acquisto di beni e servizi;2;Acquisto di servizi;5;Utenze e canoni;4;Energia elettrica;21-02-2019;
192;1;293;"17,89";"155,06";HERA COMM S.r.l.; ;SALDO Fatt.n. 411900236722  del 11/01/2019 FORNITURA SERVIZIO ENERGIA ELETTRICA DIC.2018;21-02-2019;6030;13;467;1;Spese correnti;3;Acquisto di beni e servizi;2;Acquisto di servizi;5;Utenze e canoni;4;Energia elettrica;21-02-2019;
192;2;293;"19,11";"155,06";HERA COMM S.r.l.; ;SALDO Fatt.n. 411900236723  del 11/01/2019 FORNITURA SERVIZIO ENERGIA ELETTRICA DIC.2018;21-02-2019;6030;13;467;1;Spese correnti;3;Acquisto di beni e servizi;2;Acquisto di servizi;5;Utenze e canoni;4;Energia elettrica;21-02-2019;
192;3;293;"118,06";"155,06";HERA COMM S.r.l.; ;SALDO Fatt.n. 411900236721  del 11/01/2019 FORNITURA SERVIZIO ENERGIA ELETTRICA DIC.2018;21-02-2019;6030;13;467;1;Spese correnti;3;Acquisto di beni e servizi;2;Acquisto di servizi;5;Utenze e canoni;4;Energia elettrica;21-02-2019;
193;1;294;"1.005,48";"1.005,48";POSTE ITALIANE S.P.A.;ZE11FF32F1;SALDO Fatt.n. 8719020049  del 29/01/2019 FATTURAZIONE RECAPITO RELATIVO AL MESE DI OTTOBRE 2018;21-02-2019;1043;4;329;1;Spese correnti;3;Acquisto di beni e servizi;2;Acquisto di servizi;16;Servizi amministrativi;2;Spese postali;21-02-2019;
194;1;295;"1.943,46";"1.943,46";BIGA S.R.L.;ZE825FB3BD;SALDO Fatt.n. 0000031  del 31/01/2019 N.27 BANCHI E N.27 SEDIE;21-02-2019;1477;0;549;1;Spese correnti;10;Altre spese correnti;99;Altre spese correnti n.a.c.;99;Altre spese correnti n.a.c.;999;Altre spese correnti n.a.c.;21-02-2019;
195;1;314;"1.125,76";"1.125,76";EDISON ENERGIA S.p.A.; ;SALDO Fatt.n. 5900000215  del 30/01/2019 FATTURAZIONE PERIODO OTT./DIC.2018;21-02-2019;6160;3;397;1;Spese correnti;3;Acquisto di beni e servizi;2;Acquisto di servizi;5;Utenze e canoni;6;Gas;22-02-2019;
196;1;278;"660,94";"660,94";ANCI ASSOCIAZIONE NAZIONALE COMUNI ITALIANI; ;QUOTA ASSO0CIATIVA ANCI ANNO 2019;21-02-2019;1060;0;26;1;Spese correnti;4;Trasferimenti correnti;1;Trasferimenti correnti a Amministrazioni Pubbliche;2;Trasferimenti correnti a Amministrazioni Locali;999;Trasferimenti correnti a altre Amministrazioni Locali n.a.c.;21-02-2019;
252;1;312;"200,00";"200,00";AGESCI; ;MANIFESTAZIONI ESTATE 2018-CONTRIBUTI;21-02-2019;2000;7;556;1;Spese correnti;4;Trasferimenti correnti;4;Trasferimenti correnti a Istituzioni Sociali Private;1;Trasferimenti correnti a Istituzioni Sociali Private;1;Trasferimenti correnti a Istituzioni Sociali Private;21-02-2019;
253;1;315;"500,00";"1.025,50";PORTARO CONCETTA; ;FORNITURA GRATUITA O SEMIGRATUITA LIBRI DI TESTO A.S.2016/2017 L.448/1998;25-02-2019;1425;0;560;1;Spese correnti;4;Trasferimenti correnti;2;Trasferimenti correnti a Famiglie;1;Interventi previdenziali;999;Altri sussidi e assegni;26-02-2019;
253;2;316;"150,00";"1.025,50";SALES MARIO; ;FORNITURA GRATUITA O SEMIGRATUITA LIBRI DI TESTO A.S.2016/2017 L.448/1998;25-02-2019;1425;0;560;1;Spese correnti;4;Trasferimenti correnti;2;Trasferimenti correnti a Famiglie;1;Interventi previdenziali;999;Altri sussidi e assegni;26-02-2019;
253;3;317;"150,00";"1.025,50";SCAFFIDI DOMENICA; ;FORNITURA GRATUITA O SEMIGRATUITA LIBRI DI TESTO A.S.2016/2017 L.448/1998;25-02-2019;1425;0;560;1;Spese correnti;4;Trasferimenti correnti;2;Trasferimenti correnti a Famiglie;1;Interventi previdenziali;999;Altri sussidi e assegni;26-02-2019;
253;4;318;"225,50";"1.025,50";VENTIMIGLIA DORIS; ;FORNITURA GRATUITA O SEMIGRATUITA LIBRI DI TESTO A.S.2016/2017 L.448/1998;25-02-2019;1425;0;560;1;Spese correnti;4;Trasferimenti correnti;2;Trasferimenti correnti a Famiglie;1;Interventi previdenziali;999;Altri sussidi e assegni;26-02-2019;
254;1;319;"1.325,27";"1.325,27";REGIONE SICILIANA; ;CAP. 7345-CAPO 19 RESTITUZIONE SOMME FORNITURA GRATUITA O SEMIGRATUITA LIBRI DI TESTO A.S.2016/2017 L.448/1998 FONDI STATALI;26-02-2019;1425;0;560;1;Spese correnti;4;Trasferimenti correnti;2;Trasferimenti correnti a Famiglie;1;Interventi previdenziali;999;Altri sussidi e assegni;26-02-2019;
255;1;370;"400,00";"400,00";SCAFIDI GIUSEPPE;ZB32686EA6;SALDO Fatt.n. 1/2019  del 16/01/2019 PNEUMATICI P.K. CN190JJ;27-02-2019;6070;5;572;1;Spese correnti;3;Acquisto di beni e servizi;2;Acquisto di servizi;9;Manutenzione ordinaria e riparazioni;1;"Manutenzione ordinaria e riparazioni di mezzi di trasporto ad uso civile, di sicurezza e ordine pubblico";27-02-2019;
256;1;371;"1.098,00";"1.098,00";COMUNICA ITALIA S.R.L.;Z99268DE47;SALDO Fatt.n. PA01100  del 05/02/2019 SERVIZIO ALLERT SYSTEM;27-02-2019;1850;0;623;1;Spese correnti;3;Acquisto di beni e servizi;1;Acquisto di beni;2;Altri beni di consumo;6;Materiale informatico;27-02-2019;
257;1;381;"973,56";"973,56";MATOS DI MANNINO GABRIELLA;ZDD255A406;SALDO Fatt.n. 16/A  del 06/02/2019 pantaloni per componenti banda musicale;28-02-2019;1477;0;354;1;Spese correnti;10;Altre spese correnti;99;Altre spese correnti n.a.c.;99;Altre spese correnti n.a.c.;999;Altre spese correnti n.a.c.;28-02-2019;
258;1;382;"480,00";"480,00";Sal.Mar. s.a.s.;ZF124A06C0;SALDO Fatt.n. 1/PA  del 06/02/2019 determina di affidamento  n. 152 del 21-08-2018-MANIFESTAZIONE CONVENTO;28-02-2019;1512;1;245;1;Spese correnti;3;Acquisto di beni e servizi;2;Acquisto di servizi;2;"Organizzazione eventi, pubblicita` e servizi per trasferta";5;Organizzazione e partecipazione a manifestazioni e convegni;28-02-2019;
259;1;383;"656,02";"656,02";Xerox Spa;ZF21C92253;SALDO Fatt.n. 190001630 /G  del 06/02/2019 CANONE NOLEGGIO FOTOCOPIATORI DAL 01/11/18 AL 31/01/19;28-02-2019;2110;3;436;1;Spese correnti;3;Acquisto di beni e servizi;2;Acquisto di servizi;7;Utilizzo di beni di terzi;8;Noleggi di impianti e macchinari;28-02-2019;
260;1;384;"380,00";"380,00";PROCOPIO GIOVANNI;ZB6255A44C;SALDO Fatt.n. 1/PA  del 07/02/2019 PROGETTO DI DEMOCRAZIA PARTECIPATA "GIOCO-CREO-IMPARO";28-02-2019;1477;0;353;1;Spese correnti;10;Altre spese correnti;99;Altre spese correnti n.a.c.;99;Altre spese correnti n.a.c.;999;Altre spese correnti n.a.c.;28-02-2019;
261;1;385;"1.281,40";"1.281,40";EREDI PASCALE A.N. DI PASCALE ADRIANO & C. SAS;ZD926CC013;ACCONTO Fatt.n. 3/2019  del 01/02/2019 SGOMBERO NEVE E SPARGI SALE;28-02-2019;1939;0;10;1;Spese correnti;3;Acquisto di beni e servizi;2;Acquisto di servizi;9;Manutenzione ordinaria e riparazioni;8;Manutenzione ordinaria e riparazioni di beni immobili;28-02-2019;
262;1;386;"85,00";"85,00";EREDI PASCALE A.N. DI PASCALE ADRIANO & C. SAS;ZD926CC013;SALDO Fatt.n. 3/2019  del 01/02/2019 SGOMBERO NEVE E SPARGI SALE;28-02-2019;1841;0;11;1;Spese correnti;3;Acquisto di beni e servizi;2;Acquisto di servizi;99;Altri servizi;999;Altri servizi diversi n.a.c.;28-02-2019;
264;1;388;"1.518,37";"1.901,93";FIORE SALVATORE VITTORIO; ;Indennita' funzione febbraio 2019;01-03-2019;1001;0;13;1;Spese correnti;3;Acquisto di beni e servizi;2;Acquisto di servizi;1;Organi e incarichi istituzionali dell'amministrazione;1;Organi istituzionali dell'amministrazione - Indennità;01-03-2019;
264;2;389;"151,83";"1.901,93";INTERDONATO ARMANDO; ;Indennita' funzione febbraio 2019;01-03-2019;1001;0;13;1;Spese correnti;3;Acquisto di beni e servizi;2;Acquisto di servizi;1;Organi e incarichi istituzionali dell'amministrazione;1;Organi istituzionali dell'amministrazione - Indennità;01-03-2019;
264;3;390;"113,88";"1.901,93";LAMANCUSA MARCO; ;Indennita' funzione febbraio 2019;01-03-2019;1001;0;13;1;Spese correnti;3;Acquisto di beni e servizi;2;Acquisto di servizi;1;Organi e incarichi istituzionali dell'amministrazione;1;Organi istituzionali dell'amministrazione - Indennità;01-03-2019;
264;4;391;"117,85";"1.901,93";PETTINATO  ROSA SANDRA; ;Indennita' funzione febbraio 2019;01-03-2019;1001;0;13;1;Spese correnti;3;Acquisto di beni e servizi;2;Acquisto di servizi;1;Organi e incarichi istituzionali dell'amministrazione;1;Organi istituzionali dell'amministrazione - Indennità;01-03-2019;
265;1;387;"299,86";"299,86";TESORIERE COMUNALE-CREDITO VALTELLINESE; ;INTERESSI SU ANTICIPAZIONE DI TESORERIA ANNO 2018;01-03-2019;2161;0;387;1;Spese correnti;7;Interessi passivi;6;Altri interessi passivi;2;Interessi di mora;999;Interessi di mora ad altri soggetti;07-03-2019;
266;1;405;"2.885,30";"2.885,30";IMMEDIA S.P.A.;Z832592B4A;SALDO Fatt.n. 20190010  del 10/01/2019 canone ass.za software 01/10-31/12/2018;08-03-2019;2100;2;347;1;Spese correnti;3;Acquisto di beni e servizi;2;Acquisto di servizi;19;Servizi informatici e di telecomunicazioni;5;Servizi per i sistemi e relativa manutenzione;11-03-2019;
267;1;393;"48,35";"1.122,76";Energetic S.p.A.;7491316D84;Fatt.n. EEX09326/2019 del 04/02/2019 Servizio di fornitura Energia Elettrica;08-03-2019;6030;5;470;1;Spese correnti;3;Acquisto di beni e servizi;2;Acquisto di servizi;5;Utenze e canoni;4;Energia elettrica;08-03-2019;
267;2;393;"227,25";"1.122,76";Energetic S.p.A.;7491316D84;Fatt.n. EEX09330/2019 del 04/02/2019 Servizio di fornitura Energia Elettrica;08-03-2019;6030;5;470;1;Spese correnti;3;Acquisto di beni e servizi;2;Acquisto di servizi;5;Utenze e canoni;4;Energia elettrica;08-03-2019;
267;3;393;"847,16";"1.122,76";Energetic S.p.A.;7491316D84;Fatt.n. EEX09336/2019 del 04/02/2019 Servizio di fornitura Energia Elettrica;08-03-2019;6030;5;470;1;Spese correnti;3;Acquisto di beni e servizi;2;Acquisto di servizi;5;Utenze e canoni;4;Energia elettrica;08-03-2019;
268;1;394;"52,81";"52,81";Energetic S.p.A.;7491316D84;Fatt.n. EEX09331/2019 del 04/02/2019 Servizio di fornitura Energia Elettrica;08-03-2019;6030;6;471;1;Spese correnti;3;Acquisto di beni e servizi;2;Acquisto di servizi;5;Utenze e canoni;4;Energia elettrica;08-03-2019;
269;1;395;"47,62";"95,24";Energetic S.p.A.;7491316D84;Fatt.n. EEX09345/2019 del 04/02/2019 Servizio di fornitura Energia Elettrica;08-03-2019;6030;8;473;1;Spese correnti;3;Acquisto di beni e servizi;2;Acquisto di servizi;5;Utenze e canoni;4;Energia elettrica;08-03-2019;
269;2;395;"47,62";"95,24";Energetic S.p.A.;7491316D84;Fatt.n. EEX09324/2019 del 04/02/2019 Servizio di fornitura Energia Elettrica;08-03-2019;6030;8;473;1;Spese correnti;3;Acquisto di beni e servizi;2;Acquisto di servizi;5;Utenze e canoni;4;Energia elettrica;08-03-2019;
270;1;396;"560,54";"560,54";Energetic S.p.A.;7491316D84;Fatt.n. EEX09334/2019 del 04/02/2019 Servizio di fornitura Energia Elettrica;08-03-2019;6030;9;474;1;Spese correnti;3;Acquisto di beni e servizi;2;Acquisto di servizi;5;Utenze e canoni;4;Energia elettrica;08-03-2019;
271;1;397;"303,16";"303,16";Energetic S.p.A.;7491316D84;Fatt.n. EEX09338/2019 del 04/02/2019 Servizio di fornitura Energia Elettrica;08-03-2019;6030;10;475;1;Spese correnti;3;Acquisto di beni e servizi;2;Acquisto di servizi;5;Utenze e canoni;4;Energia elettrica;08-03-2019;
272;1;398;"294,93";"793,29";Energetic S.p.A.;7491316D84;Fatt.n. EEX09333/2019 del 04/02/2019 Servizio di fornitura Energia Elettrica;08-03-2019;6030;11;476;1;Spese correnti;3;Acquisto di beni e servizi;2;Acquisto di servizi;5;Utenze e canoni;4;Energia elettrica;08-03-2019;
272;2;398;"498,36";"793,29";Energetic S.p.A.;7491316D84;Fatt.n. EEX09328/2019 del 04/02/2019 Servizio di fornitura Energia Elettrica;08-03-2019;6030;11;476;1;Spese correnti;3;Acquisto di beni e servizi;2;Acquisto di servizi;5;Utenze e canoni;4;Energia elettrica;08-03-2019;
273;1;399;"15,54";"15.250,50";Energetic S.p.A.;7491316D84;Fatt.n. EEX09445/2019 del 04/02/2019 Servizio di fornitura Energia Elettrica;08-03-2019;6030;12;477;1;Spese correnti;3;Acquisto di beni e servizi;2;Acquisto di servizi;5;Utenze e canoni;4;Energia elettrica;08-03-2019;
273;2;399;"15,81";"15.250,50";Energetic S.p.A.;7491316D84;Fatt.n. EEX09337/2019 del 04/02/2019 Servizio di fornitura Energia Elettrica;08-03-2019;6030;12;477;1;Spese correnti;3;Acquisto di beni e servizi;2;Acquisto di servizi;5;Utenze e canoni;4;Energia elettrica;08-03-2019;
273;3;399;"21,29";"15.250,50";Energetic S.p.A.;7491316D84;Fatt.n. EEX09339/2019 del 04/02/2019 Servizio di fornitura Energia Elettrica;08-03-2019;6030;12;477;1;Spese correnti;3;Acquisto di beni e servizi;2;Acquisto di servizi;5;Utenze e canoni;4;Energia elettrica;08-03-2019;
273;4;399;"33,33";"15.250,50";Energetic S.p.A.;7491316D84;Fatt.n. EEX09319/2019 del 04/02/2019 Servizio di fornitura Energia Elettrica;08-03-2019;6030;12;477;1;Spese correnti;3;Acquisto di beni e servizi;2;Acquisto di servizi;5;Utenze e canoni;4;Energia elettrica;08-03-2019;
273;5;399;"39,11";"15.250,50";Energetic S.p.A.;7491316D84;Fatt.n. EEX09396/2019 del 04/02/2019 Servizio di fornitura Energia Elettrica;08-03-2019;6030;12;477;1;Spese correnti;3;Acquisto di beni e servizi;2;Acquisto di servizi;5;Utenze e canoni;4;Energia elettrica;08-03-2019;
273;6;399;"43,38";"15.250,50";Energetic S.p.A.;7491316D84;Fatt.n. EEX09341/2019 del 04/02/2019 Servizio di fornitura Energia Elettrica;08-03-2019;6030;12;477;1;Spese correnti;3;Acquisto di beni e servizi;2;Acquisto di servizi;5;Utenze e canoni;4;Energia elettrica;08-03-2019;
273;7;399;"50,72";"15.250,50";Energetic S.p.A.;7491316D84;Fatt.n. EEX09391/2019 del 04/02/2019 Servizio di fornitura Energia Elettrica;08-03-2019;6030;12;477;1;Spese correnti;3;Acquisto di beni e servizi;2;Acquisto di servizi;5;Utenze e canoni;4;Energia elettrica;08-03-2019;
273;8;399;"75,87";"15.250,50";Energetic S.p.A.;7491316D84;Fatt.n. EEX09351/2019 del 04/02/2019 Servizio di fornitura Energia Elettrica;08-03-2019;6030;12;477;1;Spese correnti;3;Acquisto di beni e servizi;2;Acquisto di servizi;5;Utenze e canoni;4;Energia elettrica;08-03-2019;
273;9;399;"80,75";"15.250,50";Energetic S.p.A.;7491316D84;Fatt.n. EEX09491/2019 del 04/02/2019 Servizio di fornitura Energia Elettrica;08-03-2019;6030;12;477;1;Spese correnti;3;Acquisto di beni e servizi;2;Acquisto di servizi;5;Utenze e canoni;4;Energia elettrica;08-03-2019;
273;10;399;"81,02";"15.250,50";Energetic S.p.A.;7491316D84;Fatt.n. EEX09343/2019 del 04/02/2019 Servizio di fornitura Energia Elettrica;08-03-2019;6030;12;477;1;Spese correnti;3;Acquisto di beni e servizi;2;Acquisto di servizi;5;Utenze e canoni;4;Energia elettrica;08-03-2019;
273;11;399;"88,08";"15.250,50";Energetic S.p.A.;7491316D84;Fatt.n. EEX09484/2019 del 04/02/2019 Servizio di fornitura Energia Elettrica;08-03-2019;6030;12;477;1;Spese correnti;3;Acquisto di beni e servizi;2;Acquisto di servizi;5;Utenze e canoni;4;Energia elettrica;08-03-2019;
273;12;399;"94,20";"15.250,50";Energetic S.p.A.;7491316D84;Fatt.n. EEX09485/2019 del 04/02/2019 Servizio di fornitura Energia Elettrica;08-03-2019;6030;12;477;1;Spese correnti;3;Acquisto di beni e servizi;2;Acquisto di servizi;5;Utenze e canoni;4;Energia elettrica;08-03-2019;
273;13;399;"102,89";"15.250,50";Energetic S.p.A.;7491316D84;Fatt.n. EEX09488/2019 del 04/02/2019 Servizio di fornitura Energia Elettrica;08-03-2019;6030;12;477;1;Spese correnti;3;Acquisto di beni e servizi;2;Acquisto di servizi;5;Utenze e canoni;4;Energia elettrica;08-03-2019;
273;14;399;"114,50";"15.250,50";Energetic S.p.A.;7491316D84;Fatt.n. EEX09353/2019 del 04/02/2019 Servizio di fornitura Energia Elettrica;08-03-2019;6030;12;477;1;Spese correnti;3;Acquisto di beni e servizi;2;Acquisto di servizi;5;Utenze e canoni;4;Energia elettrica;08-03-2019;
273;15;399;"134,26";"15.250,50";Energetic S.p.A.;7491316D84;Fatt.n. EEX09388/2019 del 04/02/2019 Servizio di fornitura Energia Elettrica;08-03-2019;6030;12;477;1;Spese correnti;3;Acquisto di beni e servizi;2;Acquisto di servizi;5;Utenze e canoni;4;Energia elettrica;08-03-2019;
273;16;399;"137,02";"15.250,50";Energetic S.p.A.;7491316D84;Fatt.n. EEX09318/2019 del 04/02/2019 Servizio di fornitura Energia Elettrica;08-03-2019;6030;12;477;1;Spese correnti;3;Acquisto di beni e servizi;2;Acquisto di servizi;5;Utenze e canoni;4;Energia elettrica;08-03-2019;
273;17;399;"140,39";"15.250,50";Energetic S.p.A.;7491316D84;Fatt.n. EEX09386/2019 del 04/02/2019 Servizio di fornitura Energia Elettrica;08-03-2019;6030;12;477;1;Spese correnti;3;Acquisto di beni e servizi;2;Acquisto di servizi;5;Utenze e canoni;4;Energia elettrica;08-03-2019;
273;18;399;"144,69";"15.250,50";Energetic S.p.A.;7491316D84;Fatt.n. EEX09390/2019 del 04/02/2019 Servizio di fornitura Energia Elettrica;08-03-2019;6030;12;477;1;Spese correnti;3;Acquisto di beni e servizi;2;Acquisto di servizi;5;Utenze e canoni;4;Energia elettrica;08-03-2019;
273;19;399;"169,29";"15.250,50";Energetic S.p.A.;7491316D84;Fatt.n. EEX09352/2019 del 04/02/2019 Servizio di fornitura Energia Elettrica;08-03-2019;6030;12;477;1;Spese correnti;3;Acquisto di beni e servizi;2;Acquisto di servizi;5;Utenze e canoni;4;Energia elettrica;08-03-2019;
273;20;399;"241,24";"15.250,50";Energetic S.p.A.;7491316D84;Fatt.n. EEX09350/2019 del 04/02/2019 Servizio di fornitura Energia Elettrica;08-03-2019;6030;12;477;1;Spese correnti;3;Acquisto di beni e servizi;2;Acquisto di servizi;5;Utenze e canoni;4;Energia elettrica;08-03-2019;
273;21;399;"302,99";"15.250,50";Energetic S.p.A.;7491316D84;Fatt.n. EEX09325/2019 del 04/02/2019 Servizio di fornitura Energia Elettrica;08-03-2019;6030;12;477;1;Spese correnti;3;Acquisto di beni e servizi;2;Acquisto di servizi;5;Utenze e canoni;4;Energia elettrica;08-03-2019;
273;22;399;"304,06";"15.250,50";Energetic S.p.A.;7491316D84;Fatt.n. EEX09357/2019 del 04/02/2019 Servizio di fornitura Energia Elettrica;08-03-2019;6030;12;477;1;Spese correnti;3;Acquisto di beni e servizi;2;Acquisto di servizi;5;Utenze e canoni;4;Energia elettrica;08-03-2019;
273;23;399;"339,03";"15.250,50";Energetic S.p.A.;7491316D84;Fatt.n. EEX09315/2019 del 04/02/2019 Servizio di fornitura Energia Elettrica;08-03-2019;6030;12;477;1;Spese correnti;3;Acquisto di beni e servizi;2;Acquisto di servizi;5;Utenze e canoni;4;Energia elettrica;08-03-2019;
273;24;399;"358,38";"15.250,50";Energetic S.p.A.;7491316D84;Fatt.n. EEX09489/2019 del 04/02/2019 Servizio di fornitura Energia Elettrica;08-03-2019;6030;12;477;1;Spese correnti;3;Acquisto di beni e servizi;2;Acquisto di servizi;5;Utenze e canoni;4;Energia elettrica;08-03-2019;
273;25;399;"368,98";"15.250,50";Energetic S.p.A.;7491316D84;Fatt.n. EEX09354/2019 del 04/02/2019 Servizio di fornitura Energia Elettrica;08-03-2019;6030;12;477;1;Spese correnti;3;Acquisto di beni e servizi;2;Acquisto di servizi;5;Utenze e canoni;4;Energia elettrica;08-03-2019;
273;26;399;"398,81";"15.250,50";Energetic S.p.A.;7491316D84;Fatt.n. EEX09348/2019 del 04/02/2019 Servizio di fornitura Energia Elettrica;08-03-2019;6030;12;477;1;Spese correnti;3;Acquisto di beni e servizi;2;Acquisto di servizi;5;Utenze e canoni;4;Energia elettrica;08-03-2019;
273;27;399;"502,97";"15.250,50";Energetic S.p.A.;7491316D84;Fatt.n. EEX09490/2019 del 04/02/2019 Servizio di fornitura Energia Elettrica;08-03-2019;6030;12;477;1;Spese correnti;3;Acquisto di beni e servizi;2;Acquisto di servizi;5;Utenze e canoni;4;Energia elettrica;08-03-2019;
273;28;399;"546,08";"15.250,50";Energetic S.p.A.;7491316D84;Fatt.n. EEX09486/2019 del 04/02/2019 Servizio di fornitura Energia Elettrica;08-03-2019;6030;12;477;1;Spese correnti;3;Acquisto di beni e servizi;2;Acquisto di servizi;5;Utenze e canoni;4;Energia elettrica;08-03-2019;
273;29;399;"762,65";"15.250,50";Energetic S.p.A.;7491316D84;Fatt.n. EEX09395/2019 del 04/02/2019 Servizio di fornitura Energia Elettrica;08-03-2019;6030;12;477;1;Spese correnti;3;Acquisto di beni e servizi;2;Acquisto di servizi;5;Utenze e canoni;4;Energia elettrica;08-03-2019;
273;30;399;"775,27";"15.250,50";Energetic S.p.A.;7491316D84;Fatt.n. EEX09487/2019 del 04/02/2019 Servizio di fornitura Energia Elettrica;08-03-2019;6030;12;477;1;Spese correnti;3;Acquisto di beni e servizi;2;Acquisto di servizi;5;Utenze e canoni;4;Energia elettrica;08-03-2019;
273;31;399;"2.519,02";"15.250,50";Energetic S.p.A.;7491316D84;Fatt.n. EEX09429/2019 del 04/02/2019 Servizio di fornitura Energia Elettrica;08-03-2019;6030;12;477;1;Spese correnti;3;Acquisto di beni e servizi;2;Acquisto di servizi;5;Utenze e canoni;4;Energia elettrica;08-03-2019;
273;32;399;"6.248,88";"15.250,50";Energetic S.p.A.;7491316D84;Fatt.n. EEX09332/2019 del 04/02/2019 Servizio di fornitura Energia Elettrica;08-03-2019;6030;12;477;1;Spese correnti;3;Acquisto di beni e servizi;2;Acquisto di servizi;5;Utenze e canoni;4;Energia elettrica;08-03-2019;
274;1;400;"13,77";"1.207,90";Energetic S.p.A.;7491316D84;Fatt.n. EEX09342/2019 del 04/02/2019 Servizio di fornitura Energia Elettrica;08-03-2019;6030;13;478;1;Spese correnti;3;Acquisto di beni e servizi;2;Acquisto di servizi;5;Utenze e canoni;4;Energia elettrica;08-03-2019;
274;2;400;"26,61";"1.207,90";Energetic S.p.A.;7491316D84;Fatt.n. EEX09316/2019 del 04/02/2019 Servizio di fornitura Energia Elettrica;08-03-2019;6030;13;478;1;Spese correnti;3;Acquisto di beni e servizi;2;Acquisto di servizi;5;Utenze e canoni;4;Energia elettrica;08-03-2019;
274;3;400;"58,19";"1.207,90";Energetic S.p.A.;7491316D84;Fatt.n. EEX09313/2019 del 04/02/2019 Servizio di fornitura Energia Elettrica;08-03-2019;6030;13;478;1;Spese correnti;3;Acquisto di beni e servizi;2;Acquisto di servizi;5;Utenze e canoni;4;Energia elettrica;08-03-2019;
274;4;400;"325,81";"1.207,90";Energetic S.p.A.;7491316D84;Fatt.n. EEX09355/2019 del 04/02/2019 Servizio di fornitura Energia Elettrica;08-03-2019;6030;13;478;1;Spese correnti;3;Acquisto di beni e servizi;2;Acquisto di servizi;5;Utenze e canoni;4;Energia elettrica;08-03-2019;
274;5;400;"783,52";"1.207,90";Energetic S.p.A.;7491316D84;Fatt.n. EEX09340/2019 del 04/02/2019 Servizio di fornitura Energia Elettrica;08-03-2019;6030;13;478;1;Spese correnti;3;Acquisto di beni e servizi;2;Acquisto di servizi;5;Utenze e canoni;4;Energia elettrica;08-03-2019;
275;1;401;"259,92";"259,92";Energetic S.p.A.;7491316D84;Fatt.n. EEX09358/2019 del 04/02/2019 Servizio di fornitura Energia Elettrica;08-03-2019;6030;14;479;1;Spese correnti;3;Acquisto di beni e servizi;2;Acquisto di servizi;5;Utenze e canoni;4;Energia elettrica;08-03-2019;
276;1;402;"73,85";"73,85";Energetic S.p.A.;7491316D84;Fatt.n. EEX09329/2019 del 04/02/2019 Servizio di fornitura Energia Elettrica;08-03-2019;6030;16;480;1;Spese correnti;3;Acquisto di beni e servizi;2;Acquisto di servizi;5;Utenze e canoni;4;Energia elettrica;08-03-2019;
277;1;403;"24,50";"24,50";Energetic S.p.A.;7491316D84;Fatt.n. EEX09382/2019 del 04/02/2019 Servizio di fornitura Energia Elettrica;08-03-2019;6030;18;481;1;Spese correnti;3;Acquisto di beni e servizi;2;Acquisto di servizi;5;Utenze e canoni;4;Energia elettrica;08-03-2019;
278;1;404;"69,39";"69,39";Energetic S.p.A.;7491316D84;Fatt.n. EEX09394/2019 del 04/02/2019 Servizio di fornitura Energia Elettrica;08-03-2019;6030;19;482;1;Spese correnti;3;Acquisto di beni e servizi;2;Acquisto di servizi;5;Utenze e canoni;4;Energia elettrica;08-03-2019;
279;1;406;"10.236,57";"10.236,57";NEBRODI RISTORAZIONE S.R.L.;7612245F48;SALDO Fatt.n. FPA 12/19  del 05/02/2019 PASTI MENSA SCOLASTICA MESE DI GENNAIO 2019;11-03-2019;2000;8;561;1;Spese correnti;3;Acquisto di beni e servizi;2;Acquisto di servizi;15;Contratti di servizio pubblico;6;Contratti di servizio per le mense scolastiche;11-03-2019;
280;1;417;"74,49";"3.125,49";TELECOM ITALIA S.P.A.-TIM SPA;ZE9263E69A;SALDO Fatt.n. 8V00048055  del 06/02/2019 2BIM 2019;11-03-2019;6040;5;521;1;Spese correnti;3;Acquisto di beni e servizi;2;Acquisto di servizi;5;Utenze e canoni;1;Telefonia fissa;12-03-2019;
280;2;417;"389,28";"3.125,49";TELECOM ITALIA S.P.A.-TIM SPA;ZE9263E69A;SALDO Fatt.n. 8V00045299  del 06/02/2019 2BIM 2019;11-03-2019;6040;5;521;1;Spese correnti;3;Acquisto di beni e servizi;2;Acquisto di servizi;5;Utenze e canoni;1;Telefonia fissa;12-03-2019;
280;3;417;"816,07";"3.125,49";TELECOM ITALIA S.P.A.-TIM SPA;ZE9263E69A;SALDO Fatt.n. 8V00046772  del 06/02/2019 2BIM 2019;11-03-2019;6040;5;521;1;Spese correnti;3;Acquisto di beni e servizi;2;Acquisto di servizi;5;Utenze e canoni;1;Telefonia fissa;12-03-2019;
280;4;417;"834,13";"3.125,49";TELECOM ITALIA S.P.A.-TIM SPA;ZE9263E69A;SALDO Fatt.n. 8V00047534  del 06/02/2019 2BIM 2019;11-03-2019;6040;5;521;1;Spese correnti;3;Acquisto di beni e servizi;2;Acquisto di servizi;5;Utenze e canoni;1;Telefonia fissa;12-03-2019;
280;5;417;"1.006,56";"3.125,49";TELECOM ITALIA S.P.A.-TIM SPA;ZE9263E69A;ACCONTO Fatt.n. 4220919800000825  del 06/02/2019 2BIM 2019;11-03-2019;6040;5;521;1;Spese correnti;3;Acquisto di beni e servizi;2;Acquisto di servizi;5;Utenze e canoni;1;Telefonia fissa;12-03-2019;
280;6;417;"4,96";"3.125,49";TELECOM ITALIA S.P.A.-TIM SPA;ZE9263E69A;SALDO Fatt.n. 8A00078637  del 06/02/2019 2BIM 2019;11-03-2019;6040;5;521;1;Spese correnti;3;Acquisto di beni e servizi;2;Acquisto di servizi;5;Utenze e canoni;1;Telefonia fissa;12-03-2019;
281;1;418;"76,37";"211,84";TELECOM ITALIA S.P.A.-TIM SPA;ZE9263E69A;SALDO Fatt.n. 8V00044799  del 06/02/2019 2BIM 2019;11-03-2019;6040;6;522;1;Spese correnti;3;Acquisto di beni e servizi;2;Acquisto di servizi;5;Utenze e canoni;1;Telefonia fissa;12-03-2019;
281;2;418;"135,47";"211,84";TELECOM ITALIA S.P.A.-TIM SPA;ZE9263E69A;SALDO Fatt.n. 4220919800000873  del 06/02/2019 2BIM 2019;11-03-2019;6040;6;522;1;Spese correnti;3;Acquisto di beni e servizi;2;Acquisto di servizi;5;Utenze e canoni;1;Telefonia fissa;12-03-2019;
282;1;419;"76,37";"214,99";TELECOM ITALIA S.P.A.-TIM SPA;ZE9263E69A;SALDO Fatt.n. 8V00044758  del 06/02/2019 2BIM 2019;11-03-2019;6040;9;523;1;Spese correnti;3;Acquisto di beni e servizi;2;Acquisto di servizi;5;Utenze e canoni;1;Telefonia fissa;12-03-2019;
282;2;419;"138,62";"214,99";TELECOM ITALIA S.P.A.-TIM SPA;ZE9263E69A;SALDO Fatt.n. 4220919800000825  del 06/02/2019 2BIM 2019;11-03-2019;6040;9;523;1;Spese correnti;3;Acquisto di beni e servizi;2;Acquisto di servizi;5;Utenze e canoni;1;Telefonia fissa;12-03-2019;
283;1;407;"0,02";"507,80";AZIENDA SICILIANA TRASPORTI;Z0924B205D;ACCONTO Fatt.n. 8/S4  del 14/01/2019 trasporto studenti dic.2018;11-03-2019;2000;9;254;1;Spese correnti;3;Acquisto di beni e servizi;2;Acquisto di servizi;15;Contratti di servizio pubblico;2;Contratti di servizio di trasporto scolastico;11-03-2019;
283;2;407;"507,78";"507,80";AZIENDA SICILIANA TRASPORTI;Z0924B205D;ACCONTO Fatt.n. 8/S4  del 14/01/2019 trasporto studenti dic.2018;11-03-2019;2000;9;254;1;Spese correnti;3;Acquisto di beni e servizi;2;Acquisto di servizi;15;Contratti di servizio pubblico;2;Contratti di servizio di trasporto scolastico;11-03-2019;
284;1;408;"5.089,70";"12.207,70";AZIENDA SICILIANA TRASPORTI;Z0924B205D;SALDO Fatt.n. 8/S4  del 14/01/2019 trasporto studenti dic.2018;11-03-2019;2000;9;254;1;Spese correnti;3;Acquisto di beni e servizi;2;Acquisto di servizi;15;Contratti di servizio pubblico;2;Contratti di servizio di trasporto scolastico;11-03-2019;
284;2;408;"7.118,00";"12.207,70";AZIENDA SICILIANA TRASPORTI;Z0924B205D;SALDO Fatt.n. 25/S4  del 01/02/2019 TRASPORTO STUDENTI GEN.2019;11-03-2019;2000;9;254;1;Spese correnti;3;Acquisto di beni e servizi;2;Acquisto di servizi;15;Contratti di servizio pubblico;2;Contratti di servizio di trasporto scolastico;11-03-2019;
285;1;409;"5.693,23";"5.693,23";SICULA TRASPORTI S.R.L.;6150991658;SALDO Fatt.n. 235  del 31/01/2019 CONFERIMENTO RSU IN DISCARICA GEN.2019;11-03-2019;1743;0;41;1;Spese correnti;3;Acquisto di beni e servizi;2;Acquisto di servizi;15;Contratti di servizio pubblico;5;Contratti di servizio per il conferimento in discarica dei rifiuti;11-03-2019;
286;1;410;"1.086,23";"1.086,23";S.R.R. MESSINA PROVINCIA SOC. CONSOR. SPA; ;VERSAMENTO QUOTE OMNICOMPRENSIVE FEB. 2019;11-03-2019;1752;2;23;1;Spese correnti;4;Trasferimenti correnti;3;Trasferimenti correnti a Imprese;99;Trasferimenti correnti a altre imprese;999;Trasferimenti correnti a altre imprese;11-03-2019;
287;1;411;"22.042,71";"22.042,71";ECOLANDIA SRL;75280149AB;"SALDO Fatt.n. 17/PA  del 31/01/2019 SERVIZIO DI SPAZZAMENTO, RACCOLTA E TRASPORTO ALLO SMALTIMENTO DEI RIFIUTI SOLIDI URBANI DIFFERENZIATI E INDIFFERENZIATI, PER IL COMUNE DI SAN PIERO PATTI (ME). CIG: 75280149AB";11-03-2019;1744;0;642;1;Spese correnti;3;Acquisto di beni e servizi;2;Acquisto di servizi;15;Contratti di servizio pubblico;5;Contratti di servizio per il conferimento in discarica dei rifiuti;11-03-2019;
289;1;413;"400,00";"400,00";A.S.D. YOUNG PEOPLE POWER; ;MANIFESTAZIONI ESTATE 2018-CONTRIBUTO REALIZZAZIONE TORNEI;11-03-2019;2000;7;557;1;Spese correnti;4;Trasferimenti correnti;4;Trasferimenti correnti a Istituzioni Sociali Private;1;Trasferimenti correnti a Istituzioni Sociali Private;1;Trasferimenti correnti a Istituzioni Sociali Private;11-03-2019;
290;1;414;"400,00";"400,00";ASSOCIAZIONE LA VOCE DELLE DONNE; ;MANIFESTAZIONI ESTATE 2018-CONTRIBUTO BALCONE E GIARDINO FIORITO;11-03-2019;2000;7;553;1;Spese correnti;4;Trasferimenti correnti;4;Trasferimenti correnti a Istituzioni Sociali Private;1;Trasferimenti correnti a Istituzioni Sociali Private;1;Trasferimenti correnti a Istituzioni Sociali Private;11-03-2019;
291;1;478;"607,21";"607,21";CIRCOLO CASINO DI COMPAGNIA; ;Rimborso spese energia elettrica anno 2018;11-03-2019;1505;1;559;1;Spese correnti;4;Trasferimenti correnti;3;Trasferimenti correnti a Imprese;99;Trasferimenti correnti a altre imprese;999;Trasferimenti correnti a altre imprese;21-03-2019;
292;1;415;"500,00";"500,00";ASSOCIAZIONE SOCIO-CULT. VENTO DEL SUD; ;MANIFESTAZIONI ESTATE 2018-CONTRIBUTO BLUES NOTES NEL BORGOI;11-03-2019;2000;7;555;1;Spese correnti;4;Trasferimenti correnti;4;Trasferimenti correnti a Istituzioni Sociali Private;1;Trasferimenti correnti a Istituzioni Sociali Private;1;Trasferimenti correnti a Istituzioni Sociali Private;11-03-2019;
293;1;416;"1.199,28";"1.199,28";LIMINA PROVVIDENZA; ;SPESE DI VIAGGIO SEGRETARIO COMUNALE ANNO 2018;11-03-2019;1110;0;130;1;Spese correnti;3;Acquisto di beni e servizi;2;Acquisto di servizi;2;"Organizzazione eventi, pubblicita` e servizi per trasferta";1;Rimborso per viaggio e trasloco;11-03-2019;
294;1;420;"0,23";"19,85";TELEPASS SPA;Z812686DEB;ACCONTO Fatt.n. 900003822T  del 28/02/2019;14-03-2019;1017;0;602;1;Spese correnti;3;Acquisto di beni e servizi;2;Acquisto di servizi;99;Altri servizi;999;Altri servizi diversi n.a.c.;14-03-2019;
294;2;420;"19,62";"19,85";TELEPASS SPA;Z812686DEB;SALDO Fatt.n. 900003822T  del 28/02/2019;14-03-2019;1017;0;602;1;Spese correnti;3;Acquisto di beni e servizi;2;Acquisto di servizi;99;Altri servizi;999;Altri servizi diversi n.a.c.;14-03-2019;
295;1;421;"12,89";"71,50";AUTOSTRADE PER L'ITALIA S.p.A.;Z812686DEB;SALDO Fatt.n. 900003607D  del 28/02/2019;14-03-2019;1017;0;601;1;Spese correnti;3;Acquisto di beni e servizi;2;Acquisto di servizi;99;Altri servizi;999;Altri servizi diversi n.a.c.;14-03-2019;
295;2;380;"58,61";"71,50";AUTOSTRADE PER L'ITALIA S.p.A.;Z812686DEB;SALDO Fatt.n. 900003607D  del 28/02/2019;14-03-2019;1017;0;601;1;Spese correnti;3;Acquisto di beni e servizi;2;Acquisto di servizi;99;Altri servizi;999;Altri servizi diversi n.a.c.;14-03-2019;
296;1;422;"866,52";"866,52";POSTE ITALIANE S.P.A.;ZE11FF32F1;SALDO Fatt.n. 8719042777  del 15/02/2019 FATTURAZIONE RECAPITO RELATIVO AL MESE DI NOVEMBRE 2018 B=02319871904277710;14-03-2019;1043;3;376;1;Spese correnti;3;Acquisto di beni e servizi;2;Acquisto di servizi;16;Servizi amministrativi;2;Spese postali;14-03-2019;
297;1;423;"100,00";"100,00";KUWAIT PETROLEUM ITALIA S.P.A.;6516542493;Fatt.n. PJ00769304 del 31/01/2019 CARBURANTE AUTOMEZZI COMUNALI GEN.2019;14-03-2019;6080;1;31;1;Spese correnti;3;Acquisto di beni e servizi;1;Acquisto di beni;2;Altri beni di consumo;2;"Carburanti, combustibili e lubrificanti";14-03-2019;
298;1;424;"93,75";"93,75";KUWAIT PETROLEUM ITALIA S.P.A.;6516542493;Fatt.n. PJ00769304 del 31/01/2019 CARBURANTE AUTOMEZZI COMUNALI GEN.2019;14-03-2019;6080;2;32;1;Spese correnti;3;Acquisto di beni e servizi;1;Acquisto di beni;2;Altri beni di consumo;2;"Carburanti, combustibili e lubrificanti";14-03-2019;
299;1;425;"1.500,00";"1.500,00";KUWAIT PETROLEUM ITALIA S.P.A.;6516542493;Fatt.n. PJ00769304 del 31/01/2019 CARBURANTE AUTOMEZZI COMUNALI GEN.2019;14-03-2019;6080;3;33;1;Spese correnti;3;Acquisto di beni e servizi;1;Acquisto di beni;2;Altri beni di consumo;2;"Carburanti, combustibili e lubrificanti";14-03-2019;
300;1;426;"300,00";"300,00";KUWAIT PETROLEUM ITALIA S.P.A.;6516542493;Fatt.n. PJ00769304 del 31/01/2019 CARBURANTE AUTOMEZZI COMUNALI GEN.2019;14-03-2019;6080;4;34;1;Spese correnti;3;Acquisto di beni e servizi;1;Acquisto di beni;2;Altri beni di consumo;2;"Carburanti, combustibili e lubrificanti";14-03-2019;
301;1;427;"300,00";"300,00";KUWAIT PETROLEUM ITALIA S.P.A.;6516542493;Fatt.n. PJ00769304 del 31/01/2019 CARBURANTE AUTOMEZZI COMUNALI GEN.2019;14-03-2019;6080;5;36;1;Spese correnti;3;Acquisto di beni e servizi;1;Acquisto di beni;2;Altri beni di consumo;2;"Carburanti, combustibili e lubrificanti";14-03-2019;
302;1;428;"81,22";"81,22";KUWAIT PETROLEUM ITALIA S.P.A.;6516542493;Fatt.n. PJ00769304 del 31/01/2019 CARBURANTE AUTOMEZZI COMUNALI GEN.2019;14-03-2019;6080;7;37;1;Spese correnti;3;Acquisto di beni e servizi;1;Acquisto di beni;2;Altri beni di consumo;2;"Carburanti, combustibili e lubrificanti";14-03-2019;
303;1;429;"8,03";"8,03";AUTOMOBILE CLUB D'ITALIA; ;SALDO Fatt.n. 0000002728  del 18/01/2019 CONSULTAZIONE PRA NOV./DIC.2018;14-03-2019;1272;0;113;1;Spese correnti;3;Acquisto di beni e servizi;2;Acquisto di servizi;99;Altri servizi;999;Altri servizi diversi n.a.c.;14-03-2019;
304;1;430;"245,78";"4.300,00";GIARDINA VIAGGI SRL;Z4224B22FB;ACCONTO Fatt.n. 6  del 19/01/2019 TRASPORTO STUDENTI DIC.2018;14-03-2019;2000;9;255;1;Spese correnti;3;Acquisto di beni e servizi;2;Acquisto di servizi;15;Contratti di servizio pubblico;2;Contratti di servizio di trasporto scolastico;14-03-2019;
304;2;430;"994,22";"4.300,00";GIARDINA VIAGGI SRL;Z4224B22FB;SALDO Fatt.n. 3  del 19/01/2019 TRASPORTO STUDENTI SETT.2018;14-03-2019;2000;9;255;1;Spese correnti;3;Acquisto di beni e servizi;2;Acquisto di servizi;15;Contratti di servizio pubblico;2;Contratti di servizio di trasporto scolastico;14-03-2019;
304;3;430;"1.530,00";"4.300,00";GIARDINA VIAGGI SRL;Z4224B22FB;SALDO Fatt.n. 5  del 19/01/2019 TRASPORTO STUDENTI NOV.2018;14-03-2019;2000;9;255;1;Spese correnti;3;Acquisto di beni e servizi;2;Acquisto di servizi;15;Contratti di servizio pubblico;2;Contratti di servizio di trasporto scolastico;14-03-2019;
304;4;430;"1.530,00";"4.300,00";GIARDINA VIAGGI SRL;Z4224B22FB;SALDO Fatt.n. 4  del 19/01/2019 TRASPORTO STUDENTI OTT.2018;14-03-2019;2000;9;255;1;Spese correnti;3;Acquisto di beni e servizi;2;Acquisto di servizi;15;Contratti di servizio pubblico;2;Contratti di servizio di trasporto scolastico;14-03-2019;
305;1;431;"989,84";"989,84";GIARDINA VIAGGI SRL;Z4224B22FB;SALDO Fatt.n. 6  del 19/01/2019 TRASPORTO STUDENTI DIC.2018;14-03-2019;2000;9;255;1;Spese correnti;3;Acquisto di beni e servizi;2;Acquisto di servizi;15;Contratti di servizio pubblico;2;Contratti di servizio di trasporto scolastico;14-03-2019;
306;1;432;"1.966,22";"1.966,22";LOPRESTI MARIA GABRIELLA; ;SALDO Fatt.n. 01  del 14/02/2019 COMP. REVISORE DEI CONTI 01/10-31/12/2018 E RIMBORSO SPESE VIAGGIO;14-03-2019;1046;0;115;1;Spese correnti;3;Acquisto di beni e servizi;2;Acquisto di servizi;1;Organi e incarichi istituzionali dell'amministrazione;1;Organi istituzionali dell'amministrazione - Indennità;14-03-2019;
307;1;433;"83,93";"83,93";AUTOLINEE MAGISTRO SRL;Z2D24B2334;SALDO Fatt.n. FATTPA 11_19  del 19/02/2019 TRASPORTO STUDENTI GEN.2019;14-03-2019;2000;9;256;1;Spese correnti;3;Acquisto di beni e servizi;2;Acquisto di servizi;15;Contratti di servizio pubblico;2;Contratti di servizio di trasporto scolastico;14-03-2019;
308;1;434;"250,00";"250,00";DRAGO SALVATORE PEPPINO;Z812640857;manifestazioni natalizie 2018-spettacolo zampognaro;14-03-2019;1520;1;530;1;Spese correnti;3;Acquisto di beni e servizi;2;Acquisto di servizi;2;"Organizzazione eventi, pubblicita` e servizi per trasferta";5;Organizzazione e partecipazione a manifestazioni e convegni;14-03-2019;
309;1;472;"173,79";"173,79";ECONOMO COMUNALE; ;RIMBORSO SPESE ECONOMATO PER RELIZZAZIONE MANIFESTAZIONI CARNEVALE 2019 .;15-03-2019;1512;1;39;1;Spese correnti;3;Acquisto di beni e servizi;2;Acquisto di servizi;2;"Organizzazione eventi, pubblicita` e servizi per trasferta";5;Organizzazione e partecipazione a manifestazioni e convegni;18-03-2019;
310;1;473;"200,00";"200,00";ECONOMO COMUNALE; ;RIMBORSO SPESE ECONOMATO PER FESTEGGIAMENTI 100 ANNI CITTADINA SAMPIETRINA .;15-03-2019;1878;9;15;1;Spese correnti;3;Acquisto di beni e servizi;1;Acquisto di beni;2;Altri beni di consumo;999;Altri beni e materiali di consumo n.a.c.;18-03-2019;
311;1;474;"2.797,46";"2.797,46";SPANO' SALVATORE;Z52263C9AB;SALDO Fatt.n. 01  del 13/02/2019 COLONNE IN MULTISTRATO;20-03-2019;1477;0;517;1;Spese correnti;10;Altre spese correnti;99;Altre spese correnti n.a.c.;99;Altre spese correnti n.a.c.;999;Altre spese correnti n.a.c.;20-03-2019;
312;1;479;"650,00";"650,00";IRA SOEMIA;Z78261B5B6;SALDO Fatt.n. 1/PA  del 21/02/2019 SPETTACOLO INTRATTENIMENTO NATALE 2018;20-03-2019;1520;1;460;1;Spese correnti;3;Acquisto di beni e servizi;2;Acquisto di servizi;2;"Organizzazione eventi, pubblicita` e servizi per trasferta";5;Organizzazione e partecipazione a manifestazioni e convegni;21-03-2019;
313;1;475;"45,60";"169,92";ENEL ENERGIA SPA;ZF827A76AA;SALDO Fatt.n. 003013072055  del 13/02/2019 fatt. gen.2019;20-03-2019;6030;7;472;1;Spese correnti;3;Acquisto di beni e servizi;2;Acquisto di servizi;5;Utenze e canoni;4;Energia elettrica;20-03-2019;
313;2;475;"124,32";"169,92";ENEL ENERGIA SPA;ZF827A76AA;SALDO Fatt.n. 003013072058  del 13/02/2019 fatt. gen.2019;20-03-2019;6030;7;472;1;Spese correnti;3;Acquisto di beni e servizi;2;Acquisto di servizi;5;Utenze e canoni;4;Energia elettrica;20-03-2019;
314;1;476;"45,60";"300,94";ENEL ENERGIA SPA;ZF827A76AA;SALDO Fatt.n. 003013072056  del 13/02/2019 fatt. gen.2019;20-03-2019;6030;13;478;1;Spese correnti;3;Acquisto di beni e servizi;2;Acquisto di servizi;5;Utenze e canoni;4;Energia elettrica;20-03-2019;
314;2;476;"109,15";"300,94";ENEL ENERGIA SPA;ZF827A76AA;SALDO Fatt.n. 003013072054  del 13/02/2019 fatt. gen.2019;20-03-2019;6030;13;478;1;Spese correnti;3;Acquisto di beni e servizi;2;Acquisto di servizi;5;Utenze e canoni;4;Energia elettrica;20-03-2019;
314;3;476;"146,19";"300,94";ENEL ENERGIA SPA;ZF827A76AA;SALDO Fatt.n. 003013072057  del 13/02/2019 fatt. gen.2019;20-03-2019;6030;13;478;1;Spese correnti;3;Acquisto di beni e servizi;2;Acquisto di servizi;5;Utenze e canoni;4;Energia elettrica;20-03-2019;
315;1;477;"195,20";"195,20";SPANO' SALVATORE;Z5E268713B;SALDO Fatt.n. 02E  del 14/02/2019 N. 20 ASSI IN LEGNO;20-03-2019;1939;0;584;1;Spese correnti;3;Acquisto di beni e servizi;2;Acquisto di servizi;9;Manutenzione ordinaria e riparazioni;8;Manutenzione ordinaria e riparazioni di beni immobili;20-03-2019;
316;1;498;"30,00";"30,00";ANAC AUTORITA' NAZIONALE ANTICORRUZIONE;7612245F48;MENSA SCOLASTICA A.S.2018/2019-CONTRIBUTO PROCEDURE DI GARA;21-03-2019;2000;8;563;1;Spese correnti;3;Acquisto di beni e servizi;2;Acquisto di servizi;15;Contratti di servizio pubblico;6;Contratti di servizio per le mense scolastiche;22-03-2019;
317;1;480;"750,00";"750,00";A.N.C.O.R.S.;Z522384690;CORSO DI FORMAZIONE IN MATERIA DI SICUREZZA SUL LAVORO PER OPERAI-ricevuta n.53 v del 10/12/18;21-03-2019;2176;4;157;1;Spese correnti;3;Acquisto di beni e servizi;2;Acquisto di servizi;4;Acquisto di servizi per formazione e addestramento del personale dell'ente;4;Acquisto di servizi per formazione obbligatoria;21-03-2019;
318;1;481;"800,00";"800,00";A.N.C.O.R.S.;ZAF264896A;CORSO DI FORMAZIONE IN MATERIA DI SICUREZZA SUL LAVORO-ricevuta n.9 v del 06/02/19;21-03-2019;2176;4;534;1;Spese correnti;3;Acquisto di beni e servizi;2;Acquisto di servizi;4;Acquisto di servizi per formazione e addestramento del personale dell'ente;4;Acquisto di servizi per formazione obbligatoria;21-03-2019;
319;1;482;"4.893,78";"4.893,78";LO PRESTI GIORGIO;Z27268A419;SALDO Fatt.n. FATTPA 2_19  del 22/02/2019 manutenzione condotte rete idrica;21-03-2019;1570;0;593;1;Spese correnti;3;Acquisto di beni e servizi;2;Acquisto di servizi;9;Manutenzione ordinaria e riparazioni;11;Manutenzione ordinaria e riparazioni di altri beni materiali;21-03-2019;
320;1;500;"1.756,83";"1.756,83";EDISON ENERGIA S.p.A.;ZC125EAC44;SALDO Fatt.n. 2900123678  del 25/02/2019 canoni e consumi gen.2019;21-03-2019;6160;3;395;1;Spese correnti;3;Acquisto di beni e servizi;2;Acquisto di servizi;5;Utenze e canoni;6;Gas;25-03-2019;
321;1;483;"915,00";"915,00";LA PIETRA DEI NEBRODI S.R.L.S.;Z3C26CBFEB;SALDO Fatt.n. 3  del 12/02/2019 sgombero neve;21-03-2019;1841;0;12;1;Spese correnti;3;Acquisto di beni e servizi;2;Acquisto di servizi;99;Altri servizi;999;Altri servizi diversi n.a.c.;21-03-2019;
322;1;484;"901,95";"901,95";ORLANDO MARIO &  FIGLI SRL;Z22268DE8F;SALDO Fatt.n. 3/41  del 06/02/2019 FORNITURA N.10 TRANSENNE;21-03-2019;1850;0;604;1;Spese correnti;3;Acquisto di beni e servizi;1;Acquisto di beni;2;Altri beni di consumo;6;Materiale informatico;21-03-2019;
323;1;499;"741,61";"741,61";PONE GIUSEPPE;Z3D2603B09;SALDO Fatt.n. 1/PA  del 22/02/2019 generi alimentari per asilo nido;21-03-2019;1776;0;321;1;Spese correnti;3;Acquisto di beni e servizi;1;Acquisto di beni;2;Altri beni di consumo;999;Altri beni e materiali di consumo n.a.c.;22-03-2019;
375;1;552;"1.900,00";"1.900,00";ASSOCIAZIONE FRATERNITA' MISERICORDIA; ;ACCORDO DI COLLABORAZIONE INTERVENTO A SOSTEGNO DIVERSAMENTE ABILI NELLE SCUOLE A.S.2018/2019-DIC.2018;27-03-2019;1775;0;456;1;Spese correnti;3;Acquisto di beni e servizi;2;Acquisto di servizi;15;Contratti di servizio pubblico;999;Altre spese per contratti di servizio pubblico;27-03-2019;
376;1;553;"2.081,43";"2.081,43";ASSOCIAZIONE FRATERNITA' MISERICORDIA; ;ACCORDO DI COLLABORAZIONE INTERVENTO A SOSTEGNO DIVERSAMENTE ABILI NELLE SCUOLE A.S.2018/2019-GEN.2019;27-03-2019;1775;0;456;1;Spese correnti;3;Acquisto di beni e servizi;2;Acquisto di servizi;15;Contratti di servizio pubblico;999;Altre spese per contratti di servizio pubblico;27-03-2019;
377;1;554;"1.200,00";"1.200,00";A.S.D. NEW SICILIA PROMOTION; ;manifestazioni natalizie 2018-BABBO NATALE;27-03-2019;2000;7;579;1;Spese correnti;4;Trasferimenti correnti;4;Trasferimenti correnti a Istituzioni Sociali Private;1;Trasferimenti correnti a Istituzioni Sociali Private;1;Trasferimenti correnti a Istituzioni Sociali Private;27-03-2019;
380;1;557;"24.707,26";"24.707,26";COMUNE DI MONTALBANO ELICONA; ;CONVENZIONE SEGRETERIA COMUNALE ANNO 2018;27-03-2019;1026;0;260;1;Spese correnti;4;Trasferimenti correnti;1;Trasferimenti correnti a Amministrazioni Pubbliche;2;Trasferimenti correnti a Amministrazioni Locali;3;Trasferimenti correnti a Comuni;27-03-2019;
381;1;558;"269,04";"269,04";COMUNE DI MONTALBANO ELICONA; ;Convenzione segreteria comunale anno 2018 - integrazione;27-03-2019;1026;0;25;1;Spese correnti;4;Trasferimenti correnti;1;Trasferimenti correnti a Amministrazioni Pubbliche;2;Trasferimenti correnti a Amministrazioni Locali;3;Trasferimenti correnti a Comuni;27-03-2019;
382;1;559;"1.000,00";"1.000,00";ASSOCIAZIONE FRATERNITA' MISERICORDIA; ;contributo per acquisto attrezzature e dpi per volontari associazione;27-03-2019;1595;0;588;1;Spese correnti;4;Trasferimenti correnti;2;Trasferimenti correnti a Famiglie;1;Interventi previdenziali;999;Altri sussidi e assegni;27-03-2019;
383;1;560;"728,75";"728,75";ASMEL CONSORTILE ARL; ;QUOTA ASSOCIATIVA ASMEL 2019;27-03-2019;1060;9;49;1;Spese correnti;4;Trasferimenti correnti;1;Trasferimenti correnti a Amministrazioni Pubbliche;2;Trasferimenti correnti a Amministrazioni Locali;999;Trasferimenti correnti a altre Amministrazioni Locali n.a.c.;27-03-2019;
384;1;0;"4.229,72";"4.229,72";CARTAREGIA COSIMO;ZA6268DDDC;"ACCONTO Fatt.n. 19  del 25/02/2019 VS. DETERMINA N.129 REG. UFF. DEL 31/12/2018 PROT. N.17872 /352 REG. GEN.LE DEL 31/12/2018-manutenz. imp.riscaldam.,condizionatori,cucina mensa";29-03-2019;3010;5;599;2;Spese in conto capitale;2;Investimenti fissi lordi e acquisto di terreni;1;Beni materiali;9;Beni immobili;1;Fabbricati ad uso abitativo;29-03-2019;
385;1;0;"1.099,31";"1.099,31";CARTAREGIA COSIMO;ZA6268DDDC;"SALDO Fatt.n. 19  del 25/02/2019 VS. DETERMINA N.129 REG. UFF. DEL 31/12/2018 PROT. N.17872 /352 REG. GEN.LE DEL 31/12/2018-manutenz. imp.riscaldam.,condizionatori,cucina mensa";29-03-2019;3304;9;600;2;Spese in conto capitale;2;Investimenti fissi lordi e acquisto di terreni;1;Beni materiali;9;Beni immobili;1;Fabbricati ad uso abitativo;29-03-2019;
386;1;0;"3.895,41";"3.895,41";CARTAREGIA COSIMO;Z532689481;SALDO Fatt.n. 11  del 12/02/2019 RIFERIMENTO DETERMINA VS. PROT. N.17871 NR.128 REG.UFF. NR.351 REG. GEN.LE DEL 31/12/2018;29-03-2019;3930;1;598;1;Spese correnti;3;Acquisto di beni e servizi;2;Acquisto di servizi;15;Contratti di servizio pubblico;999;Altre spese per contratti di servizio pubblico;29-03-2019;
387;1;566;"65,00";"65,00";CAFARELLI TINDARO;Z7726E3D89;Fatt.n. 22/A del 28/02/2019 Determina nr. 07 del 01/02/2019 - Fornitura di carburante per gli automezzi comunale feb.2019;29-03-2019;6080;1;17;1;Spese correnti;3;Acquisto di beni e servizi;1;Acquisto di beni;2;Altri beni di consumo;2;"Carburanti, combustibili e lubrificanti";29-03-2019;
388;1;567;"43,99";"43,99";CAFARELLI TINDARO;Z7726E3D89;Fatt.n. 22/A del 28/02/2019 Determina nr. 07 del 01/02/2019 - Fornitura di carburante per gli automezzi comunale feb.2019;29-03-2019;6080;2;18;1;Spese correnti;3;Acquisto di beni e servizi;1;Acquisto di beni;2;Altri beni di consumo;2;"Carburanti, combustibili e lubrificanti";29-03-2019;
389;1;568;"856,07";"856,07";CAFARELLI TINDARO;Z7726E3D89;Fatt.n. 22/A del 28/02/2019 Determina nr. 07 del 01/02/2019 - Fornitura di carburante per gli automezzi comunale feb.2019;29-03-2019;6080;3;19;1;Spese correnti;3;Acquisto di beni e servizi;1;Acquisto di beni;2;Altri beni di consumo;2;"Carburanti, combustibili e lubrificanti";29-03-2019;
390;1;569;"67,98";"67,98";CAFARELLI TINDARO;Z7726E3D89;Fatt.n. 22/A del 28/02/2019 Determina nr. 07 del 01/02/2019 - Fornitura di carburante per gli automezzi comunale feb.2019;29-03-2019;6080;4;20;1;Spese correnti;3;Acquisto di beni e servizi;1;Acquisto di beni;2;Altri beni di consumo;2;"Carburanti, combustibili e lubrificanti";29-03-2019;
391;1;570;"98,94";"98,94";CAFARELLI TINDARO;Z7726E3D89;Fatt.n. 22/A del 28/02/2019 Determina nr. 07 del 01/02/2019 - Fornitura di carburante per gli automezzi comunale feb.2019;29-03-2019;6080;5;21;1;Spese correnti;3;Acquisto di beni e servizi;1;Acquisto di beni;2;Altri beni di consumo;2;"Carburanti, combustibili e lubrificanti";29-03-2019;
392;1;571;"72,01";"72,01";CAFARELLI TINDARO;Z7726E3D89;Fatt.n. 22/A del 28/02/2019 Determina nr. 07 del 01/02/2019 - Fornitura di carburante per gli automezzi comunale feb.2019;29-03-2019;6080;7;22;1;Spese correnti;3;Acquisto di beni e servizi;1;Acquisto di beni;2;Altri beni di consumo;2;"Carburanti, combustibili e lubrificanti";29-03-2019;
393;1;572;"498,98";"498,99";DPM S.R.L.;ZA82655472;SALDO Fatt.n. 57  del 05/03/2019 Fattura emessa enti pubblici;29-03-2019;1676;2;538;1;Spese correnti;3;Acquisto di beni e servizi;2;Acquisto di servizi;99;Altri servizi;999;Altri servizi diversi n.a.c.;29-03-2019;
393;2;572;"0,01";"498,99";DPM S.R.L.;ZA82655472;ACCONTO Fatt.n. 58  del 05/03/2019 Fattura emessa enti pubblici;29-03-2019;1676;2;538;1;Spese correnti;3;Acquisto di beni e servizi;2;Acquisto di servizi;99;Altri servizi;999;Altri servizi diversi n.a.c.;29-03-2019;
394;1;573;"200,00";"200,00";DPM S.R.L.;Z222751837;SALDO Fatt.n. 58  del 05/03/2019 Fattura emessa enti pubblici;29-03-2019;1676;2;42;1;Spese correnti;3;Acquisto di beni e servizi;2;Acquisto di servizi;99;Altri servizi;999;Altri servizi diversi n.a.c.;29-03-2019;
395;1;574;"22.042,71";"22.042,71";ECOLANDIA SRL;75280149AB;"SALDO Fatt.n. 31/PA  del 28/02/2019 SERVIZIO DI SPAZZAMENTO, RACCOLTA E TRASPORTO ALLO SMALTIMENTO DEI RIFIUTI SOLIDI URBANI DIFFERENZIATI E INDIFFERENZIATI, PER IL COMUNE DI SAN PIERO PATTI (ME). CIG: 75280149AB";29-03-2019;1744;0;642;1;Spese correnti;3;Acquisto di beni e servizi;2;Acquisto di servizi;15;Contratti di servizio pubblico;5;Contratti di servizio per il conferimento in discarica dei rifiuti;29-03-2019;
396;1;575;"1.563,32";"1.563,32";TRINACRIA AMBIENTE E TECNOLOGIE S.R.L.;ZC92684875;SALDO Fatt.n. FATTPA 15_19  del 28/02/2019 manutenzione imp. depurazione arabite GEN./FEB.2019;29-03-2019;1577;1;597;1;Spese correnti;3;Acquisto di beni e servizi;2;Acquisto di servizi;9;Manutenzione ordinaria e riparazioni;11;Manutenzione ordinaria e riparazioni di altri beni materiali;29-03-2019;
397;1;576;"842,85";"842,85";AL CENTESIMO SOC. COOP. S.R.L.;ZAF20DE63B;SALDO Fatt.n. 1/E  del 01/03/2019 generi alimentari asilo nido nov.2018;29-03-2019;1776;1;408;1;Spese correnti;3;Acquisto di beni e servizi;1;Acquisto di beni;2;Altri beni di consumo;999;Altri beni e materiali di consumo n.a.c.;29-03-2019;
398;1;577;"157,45";"157,45";AL CENTESIMO SOC. COOP. S.R.L.;ZC12122971;SALDO Fatt.n. 2/E  del 01/03/2019 carne per asilo nido nov.2018;29-03-2019;1776;1;454;1;Spese correnti;3;Acquisto di beni e servizi;1;Acquisto di beni;2;Altri beni di consumo;999;Altri beni e materiali di consumo n.a.c.;29-03-2019;
